{"text_format":"1","workbook":"xlsx","n_sheets":16,"sheets":["INSTRUCTIONS - READ THIS FIRST","S0-S5","Country profile","country","IEC","Dog popn","Prev & Ctrl","Data coll & ax","Lab dx","Cross-cutting issues","Legislation","key acts","masterlist","SUMMARY (Score)","SUMMARY (S0-S5)","RULES"],"not_rendered":{"charts":0,"images":8,"macros":1,"external_links":1,"defined_names":48,"comments":0,"pivot_tables":0},"unopened":[],"bounds":{"document_bytes":16777216,"sheet_cells":100000,"rows_first":2000,"rows_last":500,"rows_between":2000,"halvings":0,"cell_chars":16384,"cell_head_chars":4096},"cells_cut":0,"cells_raw":0,"read":"whole","date_system":"1900"}

{"sheet":"INSTRUCTIONS - READ THIS FIRST","index":0,"n_rows":22,"n_cols":3,"rows_kept":22,"cut":false,"hidden":false,"merged":[[8,9,8,11],[21,2,21,8],[56,1,59,8],[35,2,35,8],[36,2,36,8],[29,2,29,8],[24,11,24,17],[24,2,24,8],[25,2,25,8],[28,2,28,8],[23,0,23,2],[29,19,29,21],[41,1,52,8],[26,2,26,8],[27,2,27,8],[25,11,25,17],[26,11,26,17],[27,11,27,17],[28,11,28,17]]}
[]
[]
[]
[]
[]
[]
[]
[]
[]
[]
[]
[]
[]
[]
[]
[]
[]
[]
[]
[]
[]
[null,null,"\n"]

{"sheet":"S0-S5","index":1,"n_rows":27,"n_cols":20,"rows_kept":27,"cut":false,"hidden":true,"merged":[[0,12,1,12],[0,14,0,19],[0,0,1,0],[0,2,1,2],[0,4,1,4],[0,6,1,6],[0,8,1,8],[0,10,1,10]]}
["LEGISLATION",null,"DATA COLLECTION AND ANALYSIS",null,"LABORATORY DIAGNOSIS",null,"INFORMATION, EDUCATION AND COMMUNICATION",null,"PREVENTION AND CONTROL",null,"DOG POPULATION RELATED ISSUES",null,"CROSS CUTTING ISSUES",null,"STAGE LEGEND"]
[null,null,null,null,null,null,null,null,null,null,null,null,null,null,0,1,2,3,4,5]
["A case definition consistent with OIE for animal rabies is available",null,"Reporting of dog rabies from local to national level ",null,"Contacts with an international rabies reference laboratory or international collaborating/reference center are established",null,"Communications situation and needs (KAP, training needs, stakeholder analysis) assessed at pilot level",null,"Vaccines for human rabies prophylaxis are available in the country",null,"Dog population studies to determine size, turn-over and accessibility have been conducted in pilot areas",null,"Result of rabies sample(s) are shared appropriately with local and national authorities "]
["A case definition consistent with WHO for human rabies is available",null,"Reporting of human rabies from local to national level",null,"At least one rabies suspect sample of animals or humans is submitted to an international rabies reference laboratory for confirmation ",null,"Target audiences identified for public, professional and advocacy communications (at-risk communities, dog owners, health professionals, at-risk community leaders/authorities, politicians)",null,"A first assessment on access to PEP (and PreP) has been carried out",null,"Other rabies control activities such as IBCM, dog population management have been implemented (at least in pilot areas) ",null,"Identification of main national stakeholders in rabies prevention and control has been carried out"]
["The national authority reports at least one confirmed rabies case to WHO or OIE ",null,"Dog rabies data analysis capacity at the national level has been established",null,"Several rabies suspect samples of animals or humans are submitted to a national laboratory and analysed by an internationally recommended method  ",null,"A rabies communication plan developed for public, professional and advocacy target audiences",null,"Dog rabies vaccines are available in the country",null,"Rabies awareness campaigns including responsible dog ownership have been expanded to more areas",null,"Stakeholder consultations held within the last 3 years"]
["The animal rabies case definition has been disseminated to relevant professionals",null,"Human rabies data analysis capacity at the national level has been established",null,"Rabies diagnostic capacity has been established in at least one national laboratory ",null,"Public awareness activities on rabies prevention, dog bite management and dog vaccination initiated (e.g. WRD)  ",null,"Dog vaccination is initiated in some parts or pilot areas of the country ",null,"Refinement of strategy based on current dog ecology and KAP surveys",null,"Intersectoral rabies task force, committee or working group established at local or national level and meeting at least twice a year"]
["The human rabies case definition has been disseminated to relevant professionals",null,"Dog bite reporting and documentation have been reviewed and data compiled",null,"Routine laboratory diagnosis of animal rabies cases in country",null,"Training or refresher courses on rabies initiated for professionals in human and animal health ",null,"Other rabies control activities such as IBCM, dog population management have been implemented (at least in pilot areas) ",null,"Dog population management and responsible dog ownership campaigns are continued ",null,"Based on pilot area experience, a short term rabies action plan has been developed and endorsed by relevant stakeholders at local / national level"]
["There is a legal framework relevant to rabies prevention and control",null,"Dog population studies to determine size, turn-over and accessibility have been conducted in pilot areas",null,"Capacity for sample collection and transportation has been established ",null,"Information on the epidemiology of rabies is regularly shared with all stakeholders",null,"WHO pre-qualified human rabies vaccines available and accessible in most parts of the country",null,null,null,"Mechanisms for mobilizing emergency funds in case of an outbreak have been identified"]
["If there is a legal framework, the framework has been reviewed to determine if it is adequate.  ",null,"Establishment of linked human and animal rabies surveillance systems, including agreed SOPs",null,"Access to laboratory diagnosis is available throughout the country  for animal samples (and if possible also for human samples)",null,"Rabies communication plan reviewed and updated ",null,"Any use of human biologics not WHO-pre-qualified is being phased out (e.g. nerve tissue vaccines, low quality vaccines)",null,null,null,"Mechanisms for regular intersectoral collaboration are in place and implemented"]
["Rabies is made a notifiable disease in animals ",null,"Human rabies surveillance systems, including feedback mechanism, coordinated between administrative levels (national, province, district, municipal, etc.) ",null,"Regular characterization and analysis of circulating rabies virus variants by a national or international laboratory",null,"Rabies awareness campaigns including responsible dog ownership have been expanded to more areas",null,"Supply and access to WHO pre-qualified human rabies vaccines for PrEP for professionals at risk ensured throughout the pilot areas",null,null,null,"Contribution and role of  private sector clarified and shared with other stakeholders"]
["Rabies is made a notifiable disease in humans ",null,"Animal rabies surveillance systems, including feedback mechanism, coordinated between administrative levels (national, province, district, municipal, etc.)",null,"Maintenance of existing surveillance activities, including ongoing laboratory investigation, for all suspected cases in dogs in the country",null,"Public awareness and sensitization campaigns are tailored to specific target groups (e.g. community leaders, authorities and health professionals, World Rabies Day Activities).",null,"Only quality dog vaccines in accordance with OIE standards are being used",null,null,null,"A national strategy and programme for rabies prevention, control and eventual elimination has been  drafted and shared with all relevant stakeholders"]
["Legislation includes compulsory rabies vaccination of dogs or proposed if not in place",null,"Information on the epidemiology of rabies is regularly shared with all stakeholders",null,"Epidemiological data from routine surveillance of all animals (working animals, livestock and wildlife) used to refine the national rabies strategy",null,"Training of human and animal health personnel has been conducted in most parts of the country",null,"Dog vaccination campaigns are regularly implemented in response to human cases and animal outbreaks",null,null,null,"Government resources identified and allocated in support of the national rabies control strategy and programme  "]
["Legislation includes measures for outbreak response",null,"Conduct field investigations for all suspected human rabies cases ",null,"On-going laboratory investigation of all suspected cases in domestic and wild animal species in the country",null,"Communication plan on rabies elimination is implemented",null,"IBCM SOPs agreed, including sharing of information between sectors",null,null,null,"Refinement of national strategy based on monitoring and evaluation "]
["The animal rabies case definition has been reviewed and endorsed (intersectoral approach)",null,"Epidemiological evidence available to rule out dog- transmitted human rabies cases",null,null,null,"Declaration of  dog-transmitted rabies free zones publicized",null,"SOPs for the observation of dogs involved in biting incidents available ",null,null,null,"Veterinary border inspection and quarantine measures are fully implemented in accordance with national regulations"]
["The human rabies case definition has been reviewed and endorsed (intersectoral approach)",null,"Conduct field investigations and laboratory confirmation for all suspected rabies outbreaks in dogs",null,null,null,"Promote responsible dog ownership together with rabies awareness campaigns",null,"WHO pre-qualified Pre- and Post- Exposure Prophylaxis available and accessible to high risk and exposed individuals throughout the country"]
["Legal frameworks updated to include specifications on compulsory vaccination of dogs and international movement of animals. ",null,"Initiate collection of local or national health economic data on rabies control to make the case for rabies control investment ",null,null,null,"Strengthen public awareness campaigns to advocate dog vaccination to leaders and authorities ",null,"Mass dog vaccination campaigns (at least 70% of the total dog population) are conducted according to the national rabies strategy "]
["Declaration of national dog-transmitted rabies freedom publicized",null,"Expand health economic studies to support further prioritization within the national rabies control programme",null,null,null,"Declaration of national dog-transmitted rabies freedom publicized",null,"Post-vaccination surveys in dogs to evaluate vaccination coverage"]
[null,null,"Maintenance of existing surveillance activities for all suspected cases in humans in the country",null,null,null,"Awareness programmes focusing on maintenance of freedom from dog and dog transmitted human rabies",null,"Capacity to conduct field investigations and planned outbreak response for animal and human rabies cases is available in the entire country"]
[null,null,"Epidemiological data from routine surveillance of all animals (working animals, livestock and wildlife) used to refine the national rabies strategy",null,null,null,"Dog population management and responsible dog ownership campaigns are continued ",null,"Sufficient facilities for observation of rabies-suspected dogs established and comply with international animal welfare regulations"]
[null,null,"On-going surveillance system for rabies maintained",null,null,null,null,null,"Identification of potential rabies free zones where canine variant cases is absent for at least a 2 year period"]
[null,null,null,null,null,null,null,null,"Dog vaccination campaigns are maintained in zones where dog rabies is still present or where otherwise justified (e.g. risk of introduction)"]
[null,null,null,null,null,null,null,null,"Freedom from dog-transmitted rabies in the entire country verified by the absence of canine variant cases for at least a 2 year period"]
[null,null,null,null,null,null,null,null,"Measures to prevent re-introduction applied in designated rabies free zones including dialogue with neighbouring countries."]
[null,null,null,null,null,null,null,null,"Emergency response/contingency plan to any case of animal rabies involving a canine variant developed in preparation of the post elimination phase"]
[null,null,null,null,null,null,null,null,"Modified protocols for PEP administration for rabies free areas implemented"]
[null,null,null,null,null,null,null,null,"Based on risk assessment, dog vaccination campaigns are maintained where justified "]
[null,null,null,null,null,null,null,null,"Capacity for outbreak and re-introduction response maintained"]

{"sheet":"Country profile","index":2,"n_rows":18,"n_cols":7,"rows_kept":18,"cut":false,"hidden":false,"merged":[[5,1,6,1],[10,1,11,1],[15,1,16,1],[14,2,14,4],[15,3,15,4],[16,3,16,4],[5,3,5,4],[6,3,6,4],[9,2,9,4],[10,3,10,4],[11,3,11,4],[2,4,2,5],[2,2,2,3],[4,2,4,4]]}
[]
[]
[null,null,"Country:",null,"Tanzania, United Rep. of",null,"(You may select your country's name from the drop-down list)"]
[]
[null,null,"Prepared by:",null,null,"GODSON MARKALIO"]
[null,"HUMAN HEALTH:",null,"Designation:",null,"PEHO"]
[null,null,null,"Office:",null,"MoHCDGEC"]
[null,null,null,"Date prepared:",null,"07TH FEBRUARY 2017","(Click on the button to open the calendar)"]
[]
[null,null,"Prepared by:",null,null,"JUSTINE ASSENGA"]
[null,"ANIMAL HEALTH:",null,"Designation:",null,"PVO"]
[null,null,null,"Office:",null,"MALF"]
[null,null,null,"Date prepared:",null,null,"(Click on the button to open the calendar)"]
[]
[null,null,"Prepared by:"]
[null,"EDUCATION / COMMUNICATIONS:",null,"Designation:"]
[null,null,null,"Office:"]
[null,null,null,"Date prepared:",null,null,"(Click on the button to open the calendar)"]

{"sheet":"country","index":3,"n_rows":267,"n_cols":1,"rows_kept":267,"cut":false,"hidden":true,"merged":[]}
["Afghanistan"]
["Africa"]
["Aland Islands"]
["Albania"]
["Algeria"]
["American Samoa"]
["Andorra"]
["Angola"]
["Anguilla"]
["Antarctica"]
["Antigua & Barbuda"]
["Argentina"]
["Armenia"]
["Aruba"]
["Asia"]
["Australia"]
["Austria"]
["Azerbaijan"]
["Bahamas, The"]
["Bahrain"]
["Bangladesh"]
["Barbados"]
["Belarus"]
["Belgium"]
["Belize"]
["Benin"]
["Bermuda"]
["Bhutan"]
["Bolivia"]
["Bonaire, St.Eustat, Saba"]
["Bosnia and Herzegovina"]
["Botswana"]
["Bouvet Island"]
["Brazil"]
["British Indian Ocean T."]
["British Virgin Islands"]
["Brunei Darussalam"]
["Bulgaria"]
["Burkina Faso"]
["Burundi"]
["Cabo Verde"]
["Cambodia"]
["Cameroon"]
["Canada"]
["Caribbean, the"]
["Cayman Islands"]
["Central African Republic"]
["Central America"]
["Chad"]
["Chile"]
["China"]
["Christmas Island"]
["Cocos (Keeling) Islands"]
["Colombia"]
["Comoros"]
["Congo"]
["Congo, Dem. Rep. of the"]
["Cook Islands"]
["Costa Rica"]
["Cote D'Ivoire"]
["Croatia"]
["Cuba"]
["Curaçao"]
["Cyprus"]
["Czech Republic"]
["Denmark"]
["Djibouti"]
["Dominica"]
["Dominican Republic"]
["East Timor (Timor-Leste)"]
["Ecuador"]
["Egypt"]
["El Salvador"]
["Equatorial Guinea"]
["Eritrea"]
["Estonia"]
["Ethiopia"]
["Europe"]
["European Union"]
["Falkland Is. (Malvinas)"]
["Faroe Islands"]
["Fiji"]
["Finland"]
["France"]
["French Guiana"]
["French Polynesia"]
["French Southern Terr."]
["Gabon"]
["Gambia, the"]
["Georgia"]
["Germany"]
["Ghana"]
["Gibraltar"]
["Greece"]
["Greenland"]
["Grenada"]
["Guadeloupe"]
["Guam"]
["Guatemala"]
["Guernsey and Alderney"]
["Guiana, French"]
["Guinea"]
["Guinea-Bissau"]
["Guinea, Equatorial"]
["Guyana"]
["Haiti"]
["Heard & McDonald Is."]
["Holy See (Vatican)"]
["Honduras"]
["Hong Kong, (China)"]
["Hungary"]
["Iceland"]
["India"]
["Indonesia"]
["Iran, Islamic Republic of"]
["Iraq"]
["Ireland"]
["Israel"]
["Italy"]
["Ivory Coast (Cote d'Ivoire)"]
["Jamaica"]
["Japan"]
["Jersey"]
["Jordan"]
["Kazakhstan"]
["Kenya"]
["Kiribati"]
["Korea Dem. People's Rep."]
["Korea, (South) Republic of"]
["Kosovo"]
["Kuwait"]
["Kyrgyzstan"]
["Lao People's Dem. Rep."]
["Latvia"]
["Lebanon"]
["Lesotho"]
["Liberia"]
["Libyan Arab Jamahiriya"]
["Liechtenstein"]
["Lithuania"]
["Luxembourg"]
["Macao, (China)"]
["Macedonia, TFYR"]
["Madagascar"]
["Malawi"]
["Malaysia"]
["Maldives"]
["Mali"]
["Malta"]
["Man, Isle of"]
["Marshall Islands"]
["Martinique (FR)"]
["Mauritania"]
["Mauritius"]
["Mayotte (FR)"]
["Mexico"]
["Micronesia, Fed. States of"]
["Middle East"]
["Moldova, Republic of"]
["Monaco"]
["Mongolia"]
["Montenegro"]
["Montserrat"]
["Morocco"]
["Mozambique"]
["Myanmar (ex-Burma)"]
["Namibia"]
["Nauru"]
["Nepal"]
["Netherlands"]
["Netherlands Antilles"]
["New Caledonia"]
["New Zealand"]
["Nicaragua"]
["Niger"]
["Nigeria"]
["Niue"]
["Norfolk Island"]
["North America"]
["Northern Mariana Islands"]
["Norway"]
["Oceania"]
["Oman"]
["Pakistan"]
["Palau"]
["Palestinian Territory"]
["Panama"]
["Papua New Guinea"]
["Paraguay"]
["Peru"]
["Philippines"]
["Pitcairn Island"]
["Poland"]
["Portugal"]
["Puerto Rico"]
["Qatar"]
["Reunion (FR)"]
["Romania"]
["Russia (Russian Fed.)"]
["Rwanda"]
["Sahara, Western"]
["Saint Barthelemy (FR)"]
["Saint Helena (UK)"]
["Saint Kitts and Nevis"]
["Saint Lucia"]
["Saint Martin (FR)"]
["S Pierre & Miquelon(FR)"]
["S Vincent & Grenadines"]
["Samoa"]
["San Marino"]
["Sao Tome and Principe"]
["Saudi Arabia"]
["Senegal"]
["Serbia"]
["Seychelles"]
["Sierra Leone"]
["Singapore"]
["Slovakia"]
["Slovenia"]
["Solomon Islands"]
["Somalia"]
["South Africa"]
["South America"]
["S.George & S.Sandwich"]
["South Sudan"]
["Spain"]
["Sri Lanka (ex-Ceilan)"]
["Sudan"]
["Suriname"]
["Svalbard & Jan Mayen Is."]
["Swaziland"]
["Sweden"]
["Switzerland"]
["Syrian Arab Republic"]
["Taiwan"]
["Tajikistan"]
["Tanzania, United Rep. of"]
["Thailand"]
["Timor-Leste (East Timor)"]
["Togo"]
["Tokelau"]
["Tonga"]
["Trinidad & Tobago"]
["Tunisia"]
["Turkey"]
["Turkmenistan"]
["Turks and Caicos Is."]
["Tuvalu"]
["Uganda"]
["Ukraine"]
["United Arab Emirates"]
["United Kingdom"]
["United States"]
["US Minor Outlying Isl."]
["Uruguay"]
["Uzbekistan"]
["Vanuatu"]
["Vatican (Holy See)"]
["Venezuela"]
["Viet Nam"]
["Virgin Islands, British"]
["Virgin Islands, U.S."]
["Wallis and Futuna"]
["Western Sahara"]
["Yemen"]
["Zambia"]
["Zimbabwe"]

{"sheet":"IEC","index":4,"n_rows":32,"n_cols":8,"rows_kept":32,"cut":false,"hidden":false,"merged":[[3,6,3,7],[29,2,29,3],[30,2,30,3],[31,2,31,3],[4,1,11,1],[17,1,24,1],[12,1,16,1]]}
[]
["Instructions: Enter \"0\" under Status if No or None, or \"1\" if Yes"]
[]
["STAGE","subcomponent","ACHIEVEMENTS / ACTIVITIES","OTHER IMPORTANT INFORMATION\n(please include in REMARKS)","STATUS","REMARKS","Rabies Blueprint references and other links"]
[1,"Public awareness","Communications situation and needs assessed at pilot level","For example, through Knowledge, Attitudes and Practice survey, focus groups or other methods",1,null,"Examples of KAP surveys"]
[1,null,"Target audiences identified at pilot level (e.g. at-risk communities, dog owners, children)",null,1,null,"4.2.3 Understanding who needs to be involved"]
[1,null,"IEC plan* developed and implemented at pilot level","Main messages and intended audiences (e.g. responsible dog ownership, rabies and bite prevention and management, and any other relevant messages for audiences such as dog owners, teachers, children, etc.)",1,null,"Communication-plan","5.4.7-Awareness-campaign"]
[1,null,"Broad public awareness messaging started at national level","To increase awareness about responsible dog ownership, rabies and bite prevention and management (through channels such as World Rabies Day, other health days, newspaper radio and television campaigns, and other channels)  ",1,null,"World Rabies Day"]
[2,null,"IEC plan implemented beyond pilot area","Main messages, intended audience and areas covered",0]
[2,null,"IEC plan reviewed and updated",null,0,null,"Communication-plan"]
[3,null,"IEC plan integrated into national rabies strategy and implemented at national level",null,1,"Incorporated in the strategy but not implemented at all levels"]
[5,null,"Awareness programmes focusing on maintenance of freedom from dog and dog transmitted human rabies","Main messages, intended audience",0,"implemented in pilot area"]
[1,"Professional education","Training needs assessed at pilot level","To assist health professionals to understand rabies and communicate effectively with the public",1,null,"5.3-Who-do-we-need-to-train"]
[1,null,"Relevant human and animal health professionals identified at pilot level",null,1]
[1,null,"Training plan developed at pilot level",null,1,null,"5.5-What-are-we-going-to-do-human-component"]
[1,null,"Training or refresher courses on rabies and public communication initiated for professionals in human and animal health at pilot level","Participant organisations/agencies",1,null,"GARC Education Platform"]
[2,null,"Training of human and animal health personnel has been conducted in most parts of the country","Participant organisations/agencies",0,null,"5.3-Who-do-we-need-to-train","GARC Education Platform"]
[1,"Advocacy","Advocacy stakeholder analysis done at pilot level and target audiences identified","For example, at-risk community leaders/authorities, politicians and other policy influencers and decision makers ",1,null,"Drafting an advocacy strategy"]
[1,null,"Advocacy plan* developed and implemented at pilot level",null,1]
[2,null,"Pilot program successes communicated to authorities/leaders in other parts of the country","Main messages, audiences, areas covered",0]
[2,null,"Advocacy stakeholder analysis* done at national level and target audiences identified",null,0]
[2,null,"Advocacy campaign to national leaders/authorities to ensure that national rabies strategy is created and properly resourced","Main messages, audiences",1]
[3,null,"Public declaration of  human  rabies free zones","Areas covered",0]
[4,null,"Public declaration of national dog-transmitted rabies freedom ",null,0]
[4,null,"Public declaration of national human rabies freedom",null,0]
[]
[]
[]
["* DEFINITIONS"]
[null,"IEC Plan","A structured plan for Information, Education and Communication (IEC) that has agreed objectives, audiences, messages, channels and timelines to increase awareness of rabies prevention and control. (See Blueprint links in SARE tool for guidance on creating a plan.)"]
[null,"Advocacy Plan","A structured plan to make rabies prevention and control a priority among leaders, decision-makers and policy influencers. (See Blueprint links in SARE tool for guidance on creating a plan.)"]
[null,"Advocacy stakeholder analysis","Identification of the people and organisations who play a role in rabies prevention and control, and determination of the most effective ways to help make rabies a priority for them.  (See Blueprint links in SARE tool for guidance on creating a plan.)"]

{"sheet":"Dog popn","index":5,"n_rows":23,"n_cols":8,"rows_kept":23,"cut":false,"hidden":false,"merged":[[3,6,3,7],[21,2,21,3],[22,2,22,3]]}
[]
["Instructions: Enter \"0\" under Status if No or None, or \"1\" if Yes"]
[]
["STAGE","subcomponent","ACHIEVEMENTS / ACTIVITIES","OTHER IMPORTANT INFORMATION\n(please include in REMARKS)","STATUS","REMARKS","Rabies Blueprint references and other links"]
[1,null,"Stakeholder consultations in pilot areas to create a dog population management strategy","Stakeholders involved, how this integrates with rabies control strategy. Studies and surveys from PCO need to be completed before this item.",1,null,"5.4.16 Dog population management tools","Guidelines-dog-population-management"]
[2,null,"A DPM* strategy and programme has been  drafted and shared with all relevant stakeholders in pilot areas",null,1]
[2,null,"DPM strategy finalized",null,0]
[2,null,"Public sensitisation about DPM built in to rabies awareness campaigns in pilot areas",null,1]
[2,null,"Dog population management has been implemented in pilot areas.",null,1,null,"Monitoring and evaluation of dog population management programmes"]
[2,null,"Training or refresher courses on animal handling and sterilisation initiated for professionals in animal health in pilot areas","Humane animal catching and handling, surgical sterilisation",0,null,"GARC Animal Handling and Vaccination course"]
[3,null,"Refinement of strategy based on current dog ecology or KAP surveys",null,0,null,"Knowledge-Attitude-Practice"]
[3,null,"Rabies awareness campaigns including responsible dog ownership have been expanded to more areas","Intended audience and areas covered\n",0,null,"Communication-plan","5.4.16- dog-population-management"]
[3,null,"Veterinary and animal technician training completed across most of country",null,0]
[3,null,"Dog population management has been implemented nationwide",null,0]
[4,null,"Dog population management and responsible dog ownership campaigns are continued after elimination of human deaths due to dog rabies",null,0]
[5,null,"Dog population management and responsible dog ownership campaigns are continued as part of the post-elimination strategy",null,0,null,"Guidelines-dog-population-management"]
[]
[]
[]
[]
["* Dog Population Management"]
[null,null,"Dog population management: Dog population management (DPM) is a multifaceted concept which aims to improve the health and  wellbeing of free-roaming dogs and reduce problems they may present, within which permanently  reducing the size or turnover rate of a dog population may be a goal (International Companion Animal Management Coalition, 2007). This goes far beyond dog population control which refers  to a program with the aim of reducing a dog population to a particular level and/or maintaining it  at that level and/or managing it in order to meet a predetermined objective (OIE, 2015a). Whilst  the former is usually practiced using humane approaches and long-term objectives, the latter has  often utilized inhumane methods with short-sighted goals."]
[null,null,"DPM may be enacted for numerous animal welfare, public health or safety reasons associated  with dogs, including human bite injuries, secondary infections and death, the spread of rabies and  other zoonoses, noise and faecal contamination of the environment, traffic accidents, negative  publicity for the government or an impact on tourism (International Companion Animal  Management Coalition, 2007; Arluke and Atema, 2015; OIE, 2015a; World Animal Protection,  2015). Therefore, DPM programs can have one or more goals depending on the specific situation,  and will require a ‘One Health’ approach involving close collaboration between animal health,  human health and environmental sectors. A DPM program with potential to improve animal,  human and environmental health may increase motivation to tackle the issues and bring on board  more stakeholders to support efforts. (From new paper under review: The Role of Dog Population Managementin Rabies Elimination – Current Tools andthe Need for Improvements. Taylor, LH et al)"]

{"sheet":"Prev & Ctrl","index":6,"n_rows":38,"n_cols":9,"rows_kept":38,"cut":false,"hidden":false,"merged":[[3,6,3,8],[34,2,34,3],[35,2,35,3],[36,2,36,3],[37,2,37,3],[4,1,10,1],[19,1,29,1],[11,1,18,1]]}
[]
["Instructions: Enter \"0\" under Status if No or None, or \"1\" if Yes"]
[]
["STAGE","subcomponent","ACHIEVEMENTS / ACTIVITIES","OTHER IMPORTANT INFORMATION\n(please include in REMARKS)","STATUS","REMARKS","Rabies Blueprint references and other links"]
[1,"Human vaccines","Vaccines for human rabies prophylaxis are available in one or more parts of the country",null,1,null,"5.5.3-human-biologics","Human-vaccination-supply"]
[2,null,"A first assessment* on access to PEP (and PreP) has been carried out",null,0,null,"3.1-Infrastructure"]
[2,null,"WHO pre-qualified human rabies vaccines available and accessible in most parts of the country","Areas available and accessible",0,null,"WHO expert consultation on rabies","WHO vaccines position papers"]
[2,null,"Any use of human biologics not WHO-pre-qualified is being phased out (e.g. nerve tissue vaccines, low quality vaccines)",null,1,null,"WHO prequalified vaccines list"]
[2,null,"Supply and access to WHO pre-qualified human rabies vaccines for PrEP for professionals at risk ensured throughout the pilot areas",null,1]
[3,null,"WHO pre-qualified Pre- and Post- Exposure Prophylaxis available and accessible to high risk and exposed individuals throughout the country",null,0,null,"WHO prequalified vaccines list"]
[5,null,"Modified protocols for PEP administration for rabies free areas implemented",null,0,null,"WHO expert consultation on rabies",null,"Guidelines on human prophylaxis"]
[1,"Dog vaccines","Dog rabies vaccines are available in at least one location in the country",null,1,null,"3.1-Infrastructure"]
[1,null,"Dog vaccination is initiated in some parts or pilot areas of the country ","Areas covered",1,null,"5.4-What-are-we-going-to-do-dog-component"]
[2,null,"Only quality dog vaccines in accordance with OIE standards are being used",null,1,null,"OIE terrestrial-manual"]
[2,null,"Dog vaccination campaigns are regularly implemented in response to human cases and animal outbreaks",null,1,null,"5.4-What-are-we-going-to-do-dog-component"]
[3,null,"Mass dog vaccination campaigns (at least 70% of the total dog population) are conducted according to the national rabies strategy ",null,0,null,"5.4.13-Vaccination campaign-coverage"]
[3,null,"Post-vaccination surveys* in dogs to evaluate vaccination coverage","Briefly describe post-vaccination survey",0,null,"5.6-Evaluation"]
[4,null,"Dog vaccination campaigns are maintained in zones where dog rabies is still present or where otherwise justified (e.g. risk of introduction)",null,0]
[5,null,"Based on risk assessment, dog vaccination campaigns are maintained where justified",null,0,null,"5.4-What-are-we-going-to-do-dog-component"]
[1,"Outbreak response and other rabies control activities","Integrated Bite Case Management (IBCM)* implemented (at least in pilot areas) ",null,1,null,"Operational-activities"]
[1,null,"Standard Operating Procedures (SOPs) for coordinated action on reported outbreaks* have been created",null,1,null,"Challenges of animal health information systems and surveillance for animal diseases and zoonoses"]
[2,null,"IBCM SOPs agreed, including sharing of information between sectors","Sectors involved. ",1,null,"WHO expert consultation on rabies","Challenges of animal health information systems and surveillance for animal diseases and zoonoses ","Zoonotic diseases: A guide to collaboration"]
[2,null,"SOPs for the observation of dogs involved in biting incidents available ",null,1,null,"Guidelines-animal-shelters","WHO expert consultation on rabies"]
[2,null,"Sufficient facilities/protocols for observation of rabies-suspected dogs established and comply with international animal welfare standards",null,0,null,"Guidelines-animal-shelters"]
[3,null,"Capacity to conduct field investigations and planned outbreak response for animal and human rabies cases is available in the entire country","Agencies of personnel involved in field investigations and outbreak response",1,null,"WHO International Health Regulations","Challenges of animal health information systems and surveillance for animal diseases and zoonoses "]
[3,null,"Identification of potential rabies free zones where canine variant cases are absent for at least a 2 year period","Names of rabies free zones",0,null,"5.4.17 Keeping an area rabies-free"]
[4,null,"Freedom from dog-transmitted rabies in the entire country verified by the absence of canine variant cases for at least a 2 year period",null,0,null,"5.4.17 Keeping an area rabies-free"]
[4,null,"Measures to prevent re-introduction applied in designated rabies free zones including dialogue with neighbouring countries.",null,0,null,"5.4.17-successful-maintenance","Challenges of animal health information systems and surveillance for animal diseases and zoonoses "]
[4,null,"Emergency response/contingency plan to any case of animal rabies involving a canine variant developed in preparation of the post elimination phase",null,0,null,"5.4.20 Reintroduction response "]
[5,null,"Capacity for outbreak and re-introduction response maintained",null,0,null,"5.4.17-successful-maintenance"]
[]
[]
[]
["* Definitions"]
[null,"Assessment on access to PEP and PrEP","Determination of the extent to which people can actually obtain post-exposure and pre-exposure treatment. This may differ from the availability of the vaccine, because other factors such as the cost and location of the vaccine influence access."]
[null,"Post-vaccination surveys in dogs","Any survey conducted after a mass vaccination campaign has been implemented, and is used to determine the percentage of the dog population that has been vaccinated."]
[null,"IBCM","Integrated Bite Case Management (IBCM) is a coordinated One Health approach to managing human dog bite cases, with the goal of improved communication and data sharing between the animal health and human health sectors following a bite case. It has a positive impact on animal rabies surveillance, identification of additional human exposures (bite cases), reduction in human rabies cases, and helps to target emergency canine vaccinations to areas where there are confirmed canine rabies cases."]
[null,"Coordinated action on reported outbreaks","When an outbreak is reported, the human and animal health services need to work in collaboration to ensure that it is investigated and dealt with effectively. SOPs should be created so that everyone understands their roles in an outbreak. "]

{"sheet":"Data coll & ax","index":7,"n_rows":31,"n_cols":10,"rows_kept":31,"cut":false,"hidden":false,"merged":[[4,1,22,1],[23,1,24,1],[3,6,3,9],[29,2,29,3],[30,2,30,3]]}
[]
["Instructions: Enter \"0\" under Status if No or None, or \"1\" if Yes"]
[]
["STAGE","subcomponent","ACHIEVEMENTS / ACTIVITIES","OTHER IMPORTANT INFORMATION\n(please include in REMARKS)","STATUS","REMARKS","Rabies Blueprint references and other links"]
[1,"Surveillance","Reporting of dog rabies from local to national level ",null,1,null,"3.1.3-Infrastructure-surveillance","Challenges of animal health information systems and surveillance for animal diseases and zoonoses ","Zoonotic diseases : a guide to establishing collaboration"," 6. Reporting of rabies data"]
[1,null,"Reporting of human rabies from local to national level",null,1,null,"3.1.3-Infrastructure-surveillance","Challenges of animal health information systems and surveillance for animal diseases and zoonoses ","Zoonotic diseases : a guide to establishing collaboration"," 6. Reporting of rabies data"]
[1,null,"Reporting of all human or animal rabies testing results to relevant international database such as WHO or OIE",null,1,null,"6.7 International databases"]
[1,null,"Dog rabies data analysis capacity at the national level has been established","For example, data analysis infrastructure in place for other diseases/programmes, adequately trained staff, sufficient technology, etc. ",1,null,"3.1.3-Infrastructure-surveillance","Challenges of animal health information systems and surveillance for animal diseases and zoonoses ","2.3 Animal rabies surveillance"]
[1,null,"Human rabies data analysis capacity at the national level has been established","For example, data analysis infrastructure in place for other diseases/programmes, adequately trained staff, sufficient technology, etc.",1,null,"3.1.3-Infrastructure-surveillance","Challenges of animal health information systems and surveillance for animal diseases and zoonoses ","2.2 Human rabies surveillance"]
[1,null,"Animal rabies surveillance* system at the national level has been established",null,1,null,"3.1.3-Infrastructure-surveillance","Challenges of animal health information systems and surveillance for animal diseases and zoonoses ","Zoonotic diseases : a guide to establishing collaboration","2.3 Animal rabies surveillance"]
[1,null,"Human rabies surveillance* system at the national level has been established",null,1,null,"3.1.3-Infrastructure-surveillance","Challenges of animal health information systems and surveillance for animal diseases and zoonoses ","Zoonotic diseases : a guide to establishing collaboration","2.2 Human rabies surveillance "]
[1,null,"Reporting and documentation of humans bitten by dogs have been reviewed and data compiled",null,1,null,"5.3.1-Rabies-surveillance"]
[1,null,"Dog population studies and KAP surveys to determine size, turn-over and accessibility of dogs for vaccination have been conducted in pilot areas","Mention the years in which the studies were conducted",1,null,"5.4.1-estimate the number of dogs"]
[2,null,"Establishment of linked human and animal rabies surveillance systems, including agreed SOPs","Please describe the surveillance systems briefly, showing how data are shared. Note: Implementation of these linked measures is covered under 'Prevention and Control'",1]
[2,null,"Human rabies surveillance systems, including feedback mechanism, are functioning and coordinated between administrative levels (national, province, district, municipal, etc.) ","Timeliness (e.g. monthly or real time) of reporting and feedback, feedback mechanisms established and stakeholders involved with clear reporting channels. (Follows on from establishment of data analysis capacity above)",1,null,"5.1.1-epidemiology-of-rabies","WHO International Health Regulations"]
[2,null,"Animal rabies surveillance systems, including feedback mechanism, are functioning and coordinated between administrative levels (national, province, district, municipal, etc.)","Timeliness (e.g. monthly or real time) of reporting and feedback, feedback mechanisms established and stakeholders involved with clear reporting channels. (Follows on from establishment of data analysis capacity above)",1,null,"5.1.1-epidemiology-of-rabies","OIE Terrestrial Animal Health Code"]
[2,null,"Information on the epidemiology of rabies is regularly shared with all stakeholders","Stakeholders involved - for example, policy makers, educators, NGOs and other relevant individuals and organisations",0,null,"5.1.1-epidemiology-of-rabies","WHO International Health Regulations","OIE Terrestrial Animal Health Code","2. Roles-and-Responsibilities"]
[3,null,"Conduct field investigations for all suspected human rabies cases ","Data shared between human and animal sectors in real time and joint actions taken",0,null,"2.2 Human rabies surveillance "]
[3,null,"Epidemiological evidence available to rule out dog- transmitted human rabies cases",null,0]
[3,null,"Conduct field investigations and laboratory confirmation for all suspected rabies outbreaks in dogs",null,0]
[4,null,"Maintenance of existing surveillance activities for all suspected cases in humans in the country","Please answer '1' only if you have adequate functional surveillance based on your answers for earlier stages.",0]
[4,null,"Epidemiological data from routine surveillance of all animals (working animals, livestock and wildlife) used to refine the national rabies strategy",null,0,null,"WHO International Health Regulations"]
[5,null,"On-going surveillance system for rabies maintained",null,0,null,"WHO International Health Regulations","OIE Terrestrial Animal Health Code"]
[3,"Health economic studies","Initiate collection of local or national health economic data* on rabies control to make the case for rabies control investment ",null,0,null,"Public-health-and-economic-burden-of rabies","Health economic studies on rabies"]
[3,null,"Expand health economic data analysis to support further prioritization within the national rabies control programme",null,0,null,"Health economic studies on rabies","Comparing-PEP-costs"]
[]
[]
[]
["*Definitions"]
[null,"Surveillance","Surveillance means the systematic ongoing collection, collation, and analysis of information related to human and animal health and the timely dissemination of information to those who need to know so that action can be taken. (Adapted from the OIE Terrestrial Animal Health Code 2010). It is the flow of data up to the national level and back down to the local level where activities are implemented. "]
[null,"Health economics","Health economics is the discipline of economics applied to the topic of health care. It helps with the analysis of decision-making by individuals, health care providers and governments with respect to health and health care. "]

{"sheet":"Lab dx","index":8,"n_rows":16,"n_cols":11,"rows_kept":16,"cut":false,"hidden":false,"merged":[[4,1,5,1],[6,1,15,1],[3,6,3,10]]}
[]
["Instructions: Enter \"0\" under Status if No or None, or \"1\" if Yes"]
[]
["STAGE","subcomponent","ACHIEVEMENTS / ACTIVITIES","OTHER IMPORTANT INFORMATION\n(please include in REMARKS)","STATUS","REMARKS","Rabies Blueprint references and other links"]
[0,"Specimen referral","Contacts with an international rabies reference laboratory or international collaborating/reference center are established","Names of international rabies reference laboratories or collaborating/reference centers",1,null,"3.1.7 Which laboratories are-available","OIE reference laboratories","WHO collaborating centres","FAO reference centre","WHO expert consultation on rabies"]
[0,null,"At least one rabies suspect sample of animals or humans is submitted to an international rabies reference laboratory for confirmation ","Year of most recent specimen referral;\nName of international rabies reference laboratory",1,null,"Simple-techniques-for animal brain-sampling","3.6 Human samples"]
[1,"Laboratory capacity and testing","Rabies diagnostics functioning in at least one national laboratory",null,1,null,"3.1.8 Minimum laboratory requirements","OIE Manual of Diagnostic Tests and Vaccines  for Terrestrial Animals  "," Laboratory biorisk management/"]
[1,null,"Several rabies suspect samples of animals or humans are submitted to a national laboratory and analysed ","Name of national laboratory;\nLaboratory test used",1,null,"Simple-techniques-for animal brain-sampling","Manual of Diagnostic Tests and Vaccines for Terrestrial Animals 2016","WHO guidance on regulations for the transport of infectious substances"]
[1,null,"Animal rabies diagnosis conducted in at least one national laboratory",null,1,null,"4. Laboratory rabies diagnosis"]
[1,null,"Twice yearly rabies suspect samples of animals or humans are submitted to a international laboratory and analysed",null,1,null,"6.7 International databases"]
[2,null,"Routine laboratory diagnosis of animal rabies cases in country","Name and location of laboratories",1,null,"3.1.8 Minimum laboratory requirements","Laboratory biorisk management"]
[2,null,"Capacity for sample collection and transportation has been established and functioning",null,0,null,"OIE Manual of Diagnostic Tests and Vaccines  for Terrestrial Animals ","Laboratory biorisk management","5.3.1-Rabies-surveillance"]
[3,null,"Access to reliable laboratory diagnosis is available throughout the country  for animal samples (and if possible also for human samples)","Names and locations of laboratories",0,null,"3.1.8-laboratory diagnosis","4. Laboratory rabies diagnosis"]
[3,null,"Regular characterization and analysis of circulating rabies virus variants by a national or international laboratory","Name of institute where molecular tests are being performed",0,null,"OIE reference laboratories","WHO collaborating centres  ","WHO expert consultation on rabies","FAO reference centre"]
[4,null,"Maintenance of existing surveillance activities, including ongoing laboratory investigation, for all suspected cases in dogs in the country",null,0,null,"OIE Terrestrial Animal Health Code"]
[5,null,"On-going laboratory investigation of all suspected cases in domestic and wild animal species in the country",null,0,null,"OIE Terrestrial Animal Health Code"]

{"sheet":"Cross-cutting issues","index":9,"n_rows":16,"n_cols":9,"rows_kept":16,"cut":false,"hidden":false,"merged":[[10,1,15,1],[4,1,9,1],[3,6,3,8]]}
[]
["Instructions: Enter \"0\" under Status if No or None, or \"1\" if Yes"]
[]
["STAGE","subcomponent","ACHIEVEMENTS / ACTIVITIES","OTHER IMPORTANT INFORMATION\n(please include in REMARKS)","STATUS","REMARKS","Rabies Blueprint references and other links"]
[0,"Intersectoral collaboration","Result of rabies sample(s) are shared appropriately with local and national authorities ","Agencies involved",1,null,"6. Reporting of rabies data"]
[1,null,"Identification of main national stakeholders in rabies prevention and control has been carried out","Agencies of stakeholders involved",1,null,"2. Roles-and-Responsibilities","Challenges of animal health information systems and surveillance for animal diseases and zoonoses "]
[1,null,"Stakeholder consultations held within the last 3 years at the national level",null,1,null,"2. Roles-and-Responsibilities"]
[1,null,"Intersectoral rabies task force, committee or working group established at local or national level and meeting at least twice a year","Agencies of members of task force",0,"Task force established but not implemented","2. Roles-and-Responsibilities","Challenges of animal health information systems and surveillance for animal diseases and zoonoses "]
[2,null,"Mechanisms for regular intersectoral collaboration are in place and implemented",null,0,"One Health Coordination unit established and implemented but not task force","2. Roles-and-Responsibilities"]
[2,null,"Contribution and role of  private sector clarified and shared with other stakeholders",null,1,null,"2. Roles-and-Responsibilities"]
[1,"National programme and strategy","Based on pilot area experience, a short term rabies action plan has been developed and endorsed by relevant stakeholders at local / national level",null,1,null,"5.1-What-do-we-need-to-know-before","1.8-What-measures-are-available","2. Roles-and-Responsibilities"]
[1,null,"Mechanisms for mobilizing emergency funds in case of an outbreak have been identified",null,1,null,"3.3-Costs-and-Funding"]
[2,null,"A national strategy and programme for rabies prevention, control and eventual elimination has been  drafted,  shared with all relevant stakeholders and finalised.",null,1,null,"Components-of-a-successful-rabies-programme"]
[2,null,"Government resources identified and allocated in support of the national rabies control strategy and programme  ",null,0,null,"3.3-Costs-and-Funding"]
[3,null,"Refinement of national strategy based on monitoring and evaluation ",null,0,null,"5.6-Evaluation","5.7.1-Sustainability"]
[4,null,"Veterinary border inspection and quarantine measures are fully implemented in accordance with national regulations",null,1,null,"OIE Terrestrial Animal Health Code"]

{"sheet":"Legislation","index":10,"n_rows":19,"n_cols":10,"rows_kept":19,"cut":false,"hidden":false,"merged":[[4,1,6,1],[7,1,9,1],[3,6,3,9],[10,1,18,1]]}
[]
["Instructions: Enter \"0\" under Status if No or None, or \"1\" if Yes"]
[]
["STAGE","subcomponent","ACHIEVEMENTS / ACTIVITIES","OTHER IMPORTANT INFORMATION\n(please include in REMARKS)","STATUS","REMARKS","Rabies Blueprint references and other links"]
[0,"National case definition for animal rabies","A case definition consistent with OIE for animal rabies is available",null,1,null,"OIE Terrestrial Animal Health Code"]
[1,null,"The animal rabies case definition has been disseminated to relevant professionals","Agencies the case definition was disseminated to",1,null,"OIE Terrestrial Animal Health Code"]
[2,null,"The animal rabies case definition has been reviewed and endorsed (intersectoral approach)","Agencies and lowest local government unit the definition was endorsed to",1,null,"3.2.9-How-to-make-rabies-notifiable","OIE Terrestrial Animal Health Code"]
[0,"National case definition for human rabies","A case definition consistent with WHO for human rabies is available",null,1,null,"WHO expert consultation on rabies"]
[1,null,"The human rabies case definition has been disseminated to relevant professionals","Agencies the case definition was disseminated to",1,null,"WHO expert consultation on rabies"]
[2,null,"The human rabies case definition has been reviewed and endorsed (intersectoral approach)","Agencies and lowest local government unit the definition was endorsed to",1,null,"3.2.9-How-to-make-rabies-notifiable","WHO expert consultation on rabies"]
[0,"Legal framework","The national authority reports at least one confirmed rabies case to WHO or OIE ","Year of last reported rabies case",1,null,"WHO Collaborating Centres and OIE Reference Laboratories"]
[1,null,"There is a national legal framework relevant to rabies prevention and control","Title of the framework and the year it was passed",1,null,"3.2. Legislation"]
[1,null,"If there is a legal framework, the framework has been reviewed to determine if it is adequate.  ","Year the framework was reviewed",0]
[1,null,"Rabies is made a notifiable disease in animals ",null,1,null,"3.2. Legislation","3.2.3-Why-does-rabies-need-to-be-notifiable","OIE Terrestrial Animal Health Code","3.2.9-How-to-make-rabies-notifiable"]
[1,null,"Rabies is made a notifiable disease in humans ",null,1,null,"3.2. Legislation","3.2.3-Why-does-rabies-need-to-be-notifiable","WHO expert consultation on rabies","3.2.9-How-to-make-rabies-notifiable"]
[1,null,"Legislation includes compulsory rabies vaccination of dogs or proposed if not in place",null,1]
[1,null,"Legislation includes measures for outbreak response",null,1]
[2,null,"Legal frameworks updated to include specifications on compulsory vaccination of dogs and international movement of animals. ",null,1,null,"General-guide-on-veterinary legislation","3.2.11- laws-and-by-laws"]
[3,null,"Relevant legislation is enforced at the national level",null,0]

{"sheet":"key acts","index":11,"n_rows":45,"n_cols":3,"rows_kept":45,"cut":false,"hidden":true,"merged":[]}
["STAGE","COMPONENT","ACTIVITY"]
[0,"LEG","The national authority reports at least one confirmed rabies case to WHO or OIE"]
[0,"LAB","Contacts with an international rabies reference laboratory or international collaborating/reference center are established"]
[0,"LAB","At least one rabies suspect sample of animals or humans is submitted to an international rabies reference laboratory for confirmation"]
[1,"CCI","Based on pilot area experience, a short term rabies action plan has been developed and endorsed by relevant stakeholders at local / national level"]
[1,"CCI","Intersectoral rabies task force, committee or working group established at local or national level and meeting at least twice a year"]
[1,"DCA","Reporting of dog rabies from local to national level"]
[1,"DCA","Reporting of human rabies from local to national level"]
[1,"IEC","IEC plan developed and implemented at pilot level"]
[1,"LAB","Rabies diagnostic capacity has been established in at least one national laboratory"]
[1,"LEG","Rabies is made a notifiable disease in animals"]
[1,"LEG","Rabies is made a notifiable disease in humans"]
[1,"PCO","Vaccines for human rabies prophylaxis are available in available in some parts of the country"]
[1,"PCO","Dog rabies vaccines are available in at least one location in the country"]
[2,"CCI","A national strategy and programme for rabies prevention, control and eventual elimination has been  drafted and shared with all relevant stakeholders"]
[2,"CCI","Government resources identified and allocated in support of the national rabies control strategy and programme "]
[2,"DCA","Information on the epidemiology of rabies is regularly shared with all stakeholders"]
[2,"IEC","Advocacy campaign to national leaders/authorities to ensure that national rabies strategy is created and properly resourced"]
[2,"LEG","Legal frameworks updated to include specifications on compulsory vaccination of dogs and international movement of animals."]
[2,"PCO","WHO pre-qualified human rabies vaccines available and accessible in most parts of the country"]
[2,"PCO","Supply and access to WHO pre-qualified human rabies vaccines for PrEP for professionals at risk ensured throughout the pilot areas"]
[2,"PCO","Dog vaccination campaigns are regularly implemented in response to human cases and animal outbreaks"]
[3,"DCA","Conduct field investigations for all suspected human rabies cases"]
[3,"DCA","Epidemiological evidence available to rule out dog- transmitted human rabies cases"]
[3,"DCA","Conduct field investigations and laboratory confirmation for all suspected rabies outbreaks in dogs"]
[3,"IEC","Public declaration of  human  rabies free zones"]
[3,"IEC","IEC plan integrated into national rabies strategy and implemented at national level"]
[3,"PCO","WHO pre-qualified Pre- and Post- Exposure Prophylaxis available and accessible to high risk and exposed individuals throughout the country"]
[3,"PCO","Identification of potential rabies free zones where canine variant cases are absent for at least a 2 year period"]
[3,"PCO","Mass dog vaccination campaigns (at least 70% of the total dog population) are conducted according to the national rabies strategy"]
[3,"PCO","Post-vaccination surveys in dogs to evaluate vaccination coverage"]
[4,"LAB","Maintenance of existing surveillance activities, including ongoing laboratory investigation, for all suspected cases in dogs in the country"]
[4,"DCA","Maintenance of existing surveillance activities for all suspected cases in humans in the country"]
[4,"DCA","Epidemiological data from routine surveillance of all animals (working animals, livestock and wildlife) used to refine the national rabies strategy"]
[4,"PCO","Dog vaccination campaigns are maintained in zones where dog rabies is still present or where otherwise justified (e.g. risk of introduction)"]
[4,"PCO","Freedom from dog-transmitted rabies in the entire country verified by the absence of canine variant cases for at least a 2 year period"]
[4,"PCO","Emergency response/contingency plan to any case of animal rabies involving a canine variant developed in preparation of the post elimination phase"]
[4,"IEC","Public declaration of national dog-transmitted rabies freedom"]
[5,"DCA","On-going surveillance system for rabies maintained"]
[5,"IEC","Awareness programmes focusing on maintenance of freedom from dog and dog transmitted human rabies"]
[5,"DPO","Dog population management and responsible dog ownership campaigns are continued"]
[5,"LAB","On-going laboratory investigation of all suspected cases in domestic and wild animal species in the country"]
[5,"PCO","Modified protocols for PEP administration for rabies free areas implemented"]
[5,"PCO","Based on risk assessment, dog vaccination campaigns are maintained where justified"]
[5,"PCO","Capacity for outbreak and re-introduction response maintained"]

{"sheet":"masterlist","index":12,"n_rows":1,"n_cols":7,"rows_kept":1,"cut":false,"hidden":true,"merged":[]}
["IEC","DPO","PCO","DCA","LAB","CCI","LEG"]

{"sheet":"SUMMARY (Score)","index":13,"n_rows":19,"n_cols":10,"rows_kept":19,"cut":false,"hidden":false,"merged":[[0,0,0,9],[4,0,4,2],[5,4,5,5],[2,0,2,9],[8,6,9,6],[8,7,9,7],[8,8,9,8],[14,5,15,5],[14,6,15,6],[14,7,15,7],[14,8,15,8],[4,4,4,9],[10,7,11,7],[10,8,11,8],[12,5,13,5],[12,6,13,6],[12,7,13,7],[10,5,11,5],[10,6,11,6],[12,8,13,8],[6,5,7,5],[6,6,7,6],[6,7,7,7],[6,8,7,8],[8,5,9,5]]}
[{"$f":"CONCATENATE(\"Stepwise Approach towards Rabies Elimination - \",'Country profile'!E3,\" , \",IF(ISBLANK('Country profile'!F13),\"\",YEAR('Country profile'!F13)))","v":"Stepwise Approach towards Rabies Elimination - Tanzania, United Rep. of , "}]
[]
[{"$f":"CONCATENATE(\"STAGE   \",((INDEX(E7:E18,MATCH(\"PENDING\",J7:J18,0)))))","v":"STAGE   1,5"}]
[]
["ACTIVITY SUMMARY",null,null,null,"STAGE SUMMARY"]
["COMPONENTS","PENDING ACTIVITIES","ACCOMPLISHED ACTIVITIES",null,"STAGE",null,"PENDING ACTIVITIES","ACCOMPLISHED ACTIVITIES","CRITICAL ACTIVITIES ACCOMPLISHED","STAGE COMPLETED?"]
["Legislation\n    Total number of activities = 15",{"$f":"(COUNT(STATUS))-C7","v":2},{"$f":"SUM(Legislation!E:E)","v":13},null,0,"Total number of activities = 6\n",{"$f":"COUNTIF('SUMMARY (S0-S5)'!N6:N8,\"?*\")+COUNTIF('SUMMARY (S0-S5)'!H6:H8,\"?*\")+COUNTIF('SUMMARY (S0-S5)'!J6:J8,\"?*\")+COUNTIF('SUMMARY (S0-S5)'!B6:B8,\"?*\")+COUNTIF('SUMMARY (S0-S5)'!F6:F8,\"?*\")+COUNTIF('SUMMARY (S0-S5)'!D6:D8,\"?*\")+COUNTIF('SUMMARY (S0-S5)'!L6:L8,\"?*\")","v":0},{"$f":"COUNTIF('SUMMARY (S0-S5)'!O6:O8,\"?*\")+COUNTIF('SUMMARY (S0-S5)'!I6:I8,\"?*\")+COUNTIF('SUMMARY (S0-S5)'!K6:K8,\"?*\")+COUNTIF('SUMMARY (S0-S5)'!C6:C8,\"?*\")+COUNTIF('SUMMARY (S0-S5)'!G6:G8,\"?*\")+COUNTIF('SUMMARY (S0-S5)'!E6:E8,\"?*\")+COUNTIF('SUMMARY (S0-S5)'!M6:M8,\"?*\")","v":6},{"$f":"COUNTIF(Legislation!E11,\"1\")+COUNTIF('Lab dx'!E5,\"1\")+COUNTIF('Lab dx'!E6,\"1\")","v":3},{"$f":"IF(I7>=2,\"COMPLETED\",IF(AND(I7>=1,H7>=4),\"COMPLETED\",\"PENDING\"))","v":"COMPLETED"}]
[null,null,null,null,0.5,null,null,null,null,{"$f":"IF(I7=3,\"COMPLETED\",\"PENDING\")","v":"COMPLETED"}]
["Data collection and analysis\n    Total number of activities = 21",{"$f":"(COUNT(datastatus)-'SUMMARY (Score)'!C9)","v":9},{"$f":"SUM('Data coll & ax'!E:E)","v":12},null,1,"Total number of activities = 42\n",{"$f":"COUNTIF('SUMMARY (S0-S5)'!N9:N18,\"?*\")+COUNTIF('SUMMARY (S0-S5)'!H9:H18,\"?*\")+COUNTIF('SUMMARY (S0-S5)'!J9:J18,\"?*\")+COUNTIF('SUMMARY (S0-S5)'!B9:B18,\"?*\")+COUNTIF('SUMMARY (S0-S5)'!F9:F18,\"?*\")+COUNTIF('SUMMARY (S0-S5)'!D9:D18,\"?*\")+COUNTIF('SUMMARY (S0-S5)'!L9:L18,\"?*\")","v":2},{"$f":"COUNTIF('SUMMARY (S0-S5)'!O9:O18,\"?*\")+COUNTIF('SUMMARY (S0-S5)'!I9:I18,\"?*\")+COUNTIF('SUMMARY (S0-S5)'!K9:K18,\"?*\")+COUNTIF('SUMMARY (S0-S5)'!C9:C18,\"?*\")+COUNTIF('SUMMARY (S0-S5)'!G9:G18,\"?*\")+COUNTIF('SUMMARY (S0-S5)'!E9:E18,\"?*\")+COUNTIF('SUMMARY (S0-S5)'!M9:M18,\"?*\")","v":40},{"$f":"COUNTIF('Cross-cutting issues'!E11,\"1\")+COUNTIF('Cross-cutting issues'!E8,\"1\")+COUNTIF('Data coll & ax'!E5,\"1\")+COUNTIF('Data coll & ax'!E6,\"1\")+COUNTIF(IEC!E7,\"1\")+COUNTIF('Lab dx'!E7,\"1\")+COUNTIF(Legislation!E14,\"1\")+COUNTIF(Legislation!E15,\"1\")+COUNTIF('Prev & Ctrl'!E5,\"1\")+COUNTIF('Prev & Ctrl'!E12,\"1\")","v":9},{"$f":"IF(I9>=5,\"COMPLETED\",IF(AND(I9>=1,H9>2),\"COMPLETED\",\"PENDING\"))","v":"COMPLETED"}]
[null,null,null,null,1.5,null,null,null,null,{"$f":"IF(I9=10,\"COMPLETED\",\"PENDING\")","v":"PENDING"}]
["Laboratory diagnosis\n    Total number of activities = 12",{"$f":"COUNT(labstatus)-'SUMMARY (Score)'!C11","v":5},{"$f":"SUM('Lab dx'!E:E)","v":7},null,2,"Total number of activities = 33\n",{"$f":"COUNTIF('SUMMARY (S0-S5)'!N19:N27,\"?*\")+COUNTIF('SUMMARY (S0-S5)'!H19:H27,\"?*\")+COUNTIF('SUMMARY (S0-S5)'!J19:J27,\"?*\")+COUNTIF('SUMMARY (S0-S5)'!B19:B27,\"?*\")+COUNTIF('SUMMARY (S0-S5)'!F19:F27,\"?*\")+COUNTIF('SUMMARY (S0-S5)'!D19:D27,\"?*\")+COUNTIF('SUMMARY (S0-S5)'!L19:L27,\"?*\")","v":14},{"$f":"COUNTIF('SUMMARY (S0-S5)'!O19:O27,\"?*\")+COUNTIF('SUMMARY (S0-S5)'!I19:I27,\"?*\")+COUNTIF('SUMMARY (S0-S5)'!K19:K27,\"?*\")+COUNTIF('SUMMARY (S0-S5)'!C19:C27,\"?*\")+COUNTIF('SUMMARY (S0-S5)'!G20:G27,\"?*\")+COUNTIF('SUMMARY (S0-S5)'!E19:E27,\"?*\")+COUNTIF('SUMMARY (S0-S5)'!M19:M27,\"?*\")","v":19},{"$f":"COUNTIF('Cross-cutting issues'!E13,\"1\")+COUNTIF('Cross-cutting issues'!E14,\"1\")+COUNTIF('Data coll & ax'!E17,\"1\")+COUNTIF(IEC!E22,\"1\")+COUNTIF(Legislation!E19,\"1\")+COUNTIF('Prev & Ctrl'!E7,\"1\")+COUNTIF('Prev & Ctrl'!E9,\"1\")+COUNTIF('Prev & Ctrl'!E15,\"1\")","v":4},{"$f":"IF(I11>=4,\"COMPLETED\",IF(AND(I11>=1,H11>15),\"COMPLETED\",\"PENDING\"))","v":"COMPLETED"}]
[null,null,null,null,2.5,null,null,null,null,{"$f":"IF(I11=8,\"COMPLETED\",\"PENDING\")","v":"PENDING"}]
["Information, Education, Communication\n    Total number of activities = 21",{"$f":"COUNT(iecstatus)-'SUMMARY (Score)'!C13","v":9},{"$f":"SUM(IEC!E:E)","v":12},null,3,"Total number of activities = 20\n",{"$f":"COUNTIF('SUMMARY (S0-S5)'!N28:N32,\"?*\")+COUNTIF('SUMMARY (S0-S5)'!H28:H32,\"?*\")+COUNTIF('SUMMARY (S0-S5)'!J28:J32,\"?*\")+COUNTIF('SUMMARY (S0-S5)'!B28:B32,\"?*\")+COUNTIF('SUMMARY (S0-S5)'!F28:F32,\"?*\")+COUNTIF('SUMMARY (S0-S5)'!D28:D32,\"?*\")+COUNTIF('SUMMARY (S0-S5)'!L28:L32,\"?*\")","v":18},{"$f":"COUNTIF('SUMMARY (S0-S5)'!O28:O32,\"?*\")+COUNTIF('SUMMARY (S0-S5)'!I28:I32,\"?*\")+COUNTIF('SUMMARY (S0-S5)'!K28:K32,\"?*\")+COUNTIF('SUMMARY (S0-S5)'!C28:C32,\"?*\")+COUNTIF('SUMMARY (S0-S5)'!G28:G32,\"?*\")+COUNTIF('SUMMARY (S0-S5)'!E28:E32,\"?*\")+COUNTIF('SUMMARY (S0-S5)'!M28:M32,\"?*\")+COUNTIF('SUMMARY (S0-S5)'!O28:O32,\"?*\")","v":2},{"$f":"COUNTIF('Data coll & ax'!E18,\"1\")+COUNTIF('Data coll & ax'!E19,\"1\")+COUNTIF('Data coll & ax'!E20,\"1\")+COUNTIF(IEC!E23,\"1\")+COUNTIF(IEC!E11,\"1\")+COUNTIF('Prev & Ctrl'!E10,\"1\")+COUNTIF('Prev & Ctrl'!E26,\"1\")+COUNTIF('Prev & Ctrl'!E16,\"1\")+COUNTIF('Prev & Ctrl'!E17,\"1\")","v":1},{"$f":"IF(I13>4,\"COMPLETED\",IF(AND(I13>=1,H13>10),\"COMPLETED\",\"PENDING\"))","v":"PENDING"}]
[null,null,null,null,3.5,null,null,null,null,{"$f":"IF(I13=9,\"COMPLETED\",\"PENDING\")","v":"PENDING"}]
["Prevention and Control\n    Total number of activities = 25",{"$f":"COUNT(prevstatus)-'SUMMARY (Score)'!C15","v":14},{"$f":"SUM('Prev & Ctrl'!E:E)","v":12},null,4,"Total number of activities = 11\n",{"$f":"COUNTIF('SUMMARY (S0-S5)'!N33:N36,\"?*\")+COUNTIF('SUMMARY (S0-S5)'!H33:H36,\"?*\")+COUNTIF('SUMMARY (S0-S5)'!J33:J36,\"?*\")+COUNTIF('SUMMARY (S0-S5)'!B33:B36,\"?*\")+COUNTIF('SUMMARY (S0-S5)'!F33:F36,\"?*\")+COUNTIF('SUMMARY (S0-S5)'!D33:D36,\"?*\")+COUNTIF('SUMMARY (S0-S5)'!L33:L36,\"?*\")","v":10},{"$f":"COUNTIF('SUMMARY (S0-S5)'!O33:O36,\"?*\")+COUNTIF('SUMMARY (S0-S5)'!I33:I36,\"?*\")+COUNTIF('SUMMARY (S0-S5)'!K33:K36,\"?*\")+COUNTIF('SUMMARY (S0-S5)'!C33:C36,\"?*\")+COUNTIF('SUMMARY (S0-S5)'!G33:G36,\"?*\")+COUNTIF('SUMMARY (S0-S5)'!E33:E36,\"?*\")+COUNTIF('SUMMARY (S0-S5)'!M33:M36,\"?*\")","v":1},{"$f":"COUNTIF('Lab dx'!E15,\"1\")+COUNTIF('Data coll & ax'!E21,\"1\")+COUNTIF('Data coll & ax'!E22,\"1\")+COUNTIF('Prev & Ctrl'!E18,\"1\")+COUNTIF('Prev & Ctrl'!E27,\"1\")+COUNTIF(IEC!E24,\"1\")+COUNTIF('Prev & Ctrl'!E29,\"1\")","v":0},{"$f":"IF(I15>3,\"COMPLETED\",IF(AND(I15>=1,H15>5),\"COMPLETED\",\"PENDING\"))","v":"PENDING"}]
[null,null,null,null,4.5,null,null,null,null,{"$f":"IF(I15=7,\"COMPLETED\",\"PENDING\")","v":"PENDING"}]
["Dog population related issues\n    Total number of activities = 12",{"$f":"(COUNT(dogstatus)-'SUMMARY (Score)'!C17)","v":8},{"$f":"SUM('Dog popn'!E:E)","v":4},null,5,"Total number of activities = 7\n",{"$f":"COUNTIF('SUMMARY (S0-S5)'!N37:N39,\"?*\")+COUNTIF('SUMMARY (S0-S5)'!H37:H39,\"?*\")+COUNTIF('SUMMARY (S0-S5)'!J37:J39,\"?*\")+COUNTIF('SUMMARY (S0-S5)'!B37:B39,\"?*\")+COUNTIF('SUMMARY (S0-S5)'!F37:F39,\"?*\")+COUNTIF('SUMMARY (S0-S5)'!D37:D39,\"?*\")+COUNTIF('SUMMARY (S0-S5)'!L37:L39,\"?*\")","v":7},{"$f":"COUNTIF('SUMMARY (S0-S5)'!O37:O39,\"?*\")+COUNTIF('SUMMARY (S0-S5)'!I37:I39,\"?*\")+COUNTIF('SUMMARY (S0-S5)'!K37:K39,\"?*\")+COUNTIF('SUMMARY (S0-S5)'!C37:C39,\"?*\")+COUNTIF('SUMMARY (S0-S5)'!G37:G39,\"?*\")+COUNTIF('SUMMARY (S0-S5)'!E37:E39,\"?*\")+COUNTIF('SUMMARY (S0-S5)'!M37:M39,\"?*\")","v":0},{"$f":"H17","v":0},{"$f":"IF(I17=7,\"COMPLETED\",\"PENDING\")","v":"PENDING"}]
[null,null,null,null,5,null,null,null,null,"PENDING"]
["Cross-cutting issues\n        Total number of activities = 12",{"$f":"COUNT(crossstatus)-'SUMMARY (Score)'!C19","v":4},{"$f":"SUM('Cross-cutting issues'!E:E)","v":8}]

{"sheet":"SUMMARY (S0-S5)","index":14,"n_rows":39,"n_cols":15,"rows_kept":39,"cut":false,"hidden":false,"merged":[[0,6,1,6],[0,0,0,3],[1,0,1,3],[0,4,1,5],[3,3,3,4],[3,0,4,0],[3,13,3,14],[3,7,3,8],[3,9,3,10],[3,1,3,2],[3,5,3,6],[3,11,3,12]]}
["Stepwise Approach towards Rabies Elimination",null,null,null,{"$f":"IF(ISBLANK('Country profile'!E3),\"\",UPPER('Country profile'!E3))","v":"TANZANIA, UNITED REP. OF"},null,{"$f":"IF(ISBLANK('Country profile'!F13),\"\",YEAR('Country profile'!F13))","v":""}]
["SUMMARY OF RABIES PROGRAM ACTIVITIES"]
[]
["STAGE","INFORMATION, EDUCATION, COMMUNICATION",null,"DOG POPULATION RELATED ISSUES",null,"PREVENTION & CONTROL",null,"DATA COLLECTION & ANALYSIS",null,"LABORATORY DIAGNOSIS",null,"CROSS-CUTTING ISSUES",null,"LEGISLATION"]
[null,"Pending","Accomplished","Pending","Accomplished","Pending","Accomplished","Pending","Accomplished","Pending","Accomplished","Pending","Accomplished","Pending","Accomplished"]
[0,null,null,null,null,null,null,null,null,{"$f":"IF('Lab dx'!E5=0,'Lab dx'!C5,\"\")","v":""},{"$f":"IF('Lab dx'!E5=1,'Lab dx'!C5,\"\")","v":"Contacts with an international rabies reference laboratory or international collaborating/reference center are established"},{"$f":"IF('Cross-cutting issues'!E5=0,'Cross-cutting issues'!C5,\"\")","v":""},{"$f":"IF('Cross-cutting issues'!E5=1,'Cross-cutting issues'!C5,\"\")","v":"Result of rabies sample(s) are shared appropriately with local and national authorities "},{"$f":"IF(Legislation!E5=0,Legislation!C5,\"\")","v":""},{"$f":"IF(Legislation!E5=1,Legislation!C5,\"\")","v":"A case definition consistent with OIE for animal rabies is available"}]
[null,null,null,null,null,null,null,null,null,{"$f":"IF('Lab dx'!E6=0,'Lab dx'!C6,\"\")","v":""},{"$f":"IF('Lab dx'!E6=1,'Lab dx'!C6,\"\")","v":"At least one rabies suspect sample of animals or humans is submitted to an international rabies reference laboratory for confirmation "},null,null,{"$f":"IF(Legislation!E8=0,Legislation!C8,\"\")","v":""},{"$f":"IF(Legislation!E8=1,Legislation!C8,\"\")","v":"A case definition consistent with WHO for human rabies is available"}]
[null,null,null,null,null,null,null,null,null,null,null,null,null,{"$f":"IF(Legislation!E11=0,Legislation!C11,\"\")","v":""},{"$f":"IF(Legislation!E11=1,Legislation!C11,\"\")","v":"The national authority reports at least one confirmed rabies case to WHO or OIE "}]
[1,{"$f":"IF(IEC!E5=0,IEC!C5,\"\")","v":""},{"$f":"IF(IEC!E5=1,IEC!C5,\"\")","v":"Communications situation and needs assessed at pilot level"},{"$f":"IF('Dog popn'!E5=0,'Dog popn'!C5,\"\")","v":""},{"$f":"IF('Dog popn'!E5=1,'Dog popn'!C5,\"\")","v":"Stakeholder consultations in pilot areas to create a dog population management strategy"},{"$f":"IF('Prev & Ctrl'!E5=0,'Prev & Ctrl'!C5,\"\")","v":""},{"$f":"IF('Prev & Ctrl'!E5=1,'Prev & Ctrl'!C5,\"\")","v":"Vaccines for human rabies prophylaxis are available in one or more parts of the country"},{"$f":"IF('Data coll & ax'!E5=0,'Data coll & ax'!C5,\"\")","v":""},{"$f":"IF('Data coll & ax'!E5=1,'Data coll & ax'!C5,\"\")","v":"Reporting of dog rabies from local to national level "},{"$f":"IF('Lab dx'!E7=0,'Lab dx'!C7,\"\")","v":""},{"$f":"IF('Lab dx'!E7=1,'Lab dx'!C7,\"\")","v":"Rabies diagnostics functioning in at least one national laboratory"},{"$f":"IF('Cross-cutting issues'!E6=0,'Cross-cutting issues'!C6,\"\")","v":""},{"$f":"IF('Cross-cutting issues'!E6=1,'Cross-cutting issues'!C6,\"\")","v":"Identification of main national stakeholders in rabies prevention and control has been carried out"},{"$f":"IF(Legislation!E6=0,Legislation!C6,\"\")","v":""},{"$f":"IF(Legislation!E6=1,Legislation!C6,\"\")","v":"The animal rabies case definition has been disseminated to relevant professionals"}]
[null,{"$f":"IF(IEC!E6=0,IEC!C6,\"\")","v":""},{"$f":"IF(IEC!E6=1,IEC!C6,\"\")","v":"Target audiences identified at pilot level (e.g. at-risk communities, dog owners, children)"},null,null,{"$f":"IF('Prev & Ctrl'!E12=0,'Prev & Ctrl'!C12,\"\")","v":""},{"$f":"IF('Prev & Ctrl'!E12=1,'Prev & Ctrl'!C12,\"\")","v":"Dog rabies vaccines are available in at least one location in the country"},{"$f":"IF('Data coll & ax'!E6=0,'Data coll & ax'!C6,\"\")","v":""},{"$f":"IF('Data coll & ax'!E6=1,'Data coll & ax'!C6,\"\")","v":"Reporting of human rabies from local to national level"},{"$f":"IF('Lab dx'!E8=0,'Lab dx'!C8,\"\")","v":""},{"$f":"IF('Lab dx'!E8=1,'Lab dx'!C8,\"\")","v":"Several rabies suspect samples of animals or humans are submitted to a national laboratory and analysed "},{"$f":"IF('Cross-cutting issues'!E7=0,'Cross-cutting issues'!C7,\"\")","v":""},{"$f":"IF('Cross-cutting issues'!E7=1,'Cross-cutting issues'!C7,\"\")","v":"Stakeholder consultations held within the last 3 years at the national level"},{"$f":"IF(Legislation!E9=0,Legislation!C9,\"\")","v":""},{"$f":"IF(Legislation!E9=1,Legislation!C9,\"\")","v":"The human rabies case definition has been disseminated to relevant professionals"}]
[null,{"$f":"IF(IEC!E7=0,IEC!C7,\"\")","v":""},{"$f":"IF(IEC!E7=1,IEC!C7,\"\")","v":"IEC plan* developed and implemented at pilot level"},null,null,{"$f":"IF('Prev & Ctrl'!E13=0,'Prev & Ctrl'!C13,\"\")","v":""},{"$f":"IF('Prev & Ctrl'!E13=1,'Prev & Ctrl'!C13,\"\")","v":"Dog vaccination is initiated in some parts or pilot areas of the country "},{"$f":"IF('Data coll & ax'!E7=0,'Data coll & ax'!C7,\"\")","v":""},{"$f":"IF('Data coll & ax'!E7=1,'Data coll & ax'!C7,\"\")","v":"Reporting of all human or animal rabies testing results to relevant international database such as WHO or OIE"},{"$f":"IF('Lab dx'!E9=0,'Lab dx'!C9,\"\")","v":""},{"$f":"IF('Lab dx'!E9=1,'Lab dx'!C9,\"\")","v":"Animal rabies diagnosis conducted in at least one national laboratory"},{"$f":"IF('Cross-cutting issues'!E8=0,'Cross-cutting issues'!C8,\"\")","v":"Intersectoral rabies task force, committee or working group established at local or national level and meeting at least twice a year"},{"$f":"IF('Cross-cutting issues'!E8=1,'Cross-cutting issues'!C8,\"\")","v":""},{"$f":"IF(Legislation!E12=0,Legislation!C12,\"\")","v":""},{"$f":"IF(Legislation!E12=1,Legislation!C12,\"\")","v":"There is a national legal framework relevant to rabies prevention and control"}]
[null,{"$f":"IF(IEC!E8=0,IEC!C8,\"\")","v":""},{"$f":"IF(IEC!E8=1,IEC!C8,\"\")","v":"Broad public awareness messaging started at national level"},null,null,{"$f":"IF('Prev & Ctrl'!E20=0,'Prev & Ctrl'!C20,\"\")","v":""},{"$f":"IF('Prev & Ctrl'!E20=1,'Prev & Ctrl'!C20,\"\")","v":"Integrated Bite Case Management (IBCM)* implemented (at least in pilot areas) "},{"$f":"IF('Data coll & ax'!E8=0,'Data coll & ax'!C8,\"\")","v":""},{"$f":"IF('Data coll & ax'!E8=1,'Data coll & ax'!C8,\"\")","v":"Dog rabies data analysis capacity at the national level has been established"},{"$f":"IF('Lab dx'!E10=0,'Lab dx'!C10,\"\")","v":""},{"$f":"IF('Lab dx'!E10=1,'Lab dx'!C10,\"\")","v":"Twice yearly rabies suspect samples of animals or humans are submitted to a international laboratory and analysed"},{"$f":"IF('Cross-cutting issues'!E11=0,'Cross-cutting issues'!C11,\"\")","v":""},{"$f":"IF('Cross-cutting issues'!E11=1,'Cross-cutting issues'!C11,\"\")","v":"Based on pilot area experience, a short term rabies action plan has been developed and endorsed by relevant stakeholders at local / national level"},{"$f":"IF(Legislation!E13=0,Legislation!C13,\"\")","v":"If there is a legal framework, the framework has been reviewed to determine if it is adequate.  "},{"$f":"IF(Legislation!E13=1,Legislation!C13,\"\")","v":""}]
[null,{"$f":"IF(IEC!E13=0,IEC!C13,\"\")","v":""},{"$f":"IF(IEC!E13=1,IEC!C13,\"\")","v":"Training needs assessed at pilot level"},null,null,{"$f":"IF('Prev & Ctrl'!E21=0,'Prev & Ctrl'!C21,\"\")","v":""},{"$f":"IF('Prev & Ctrl'!E21=1,'Prev & Ctrl'!C21,\"\")","v":"Standard Operating Procedures (SOPs) for coordinated action on reported outbreaks* have been created"},{"$f":"IF('Data coll & ax'!E9=0,'Data coll & ax'!C9,\"\")","v":""},{"$f":"IF('Data coll & ax'!E9=1,'Data coll & ax'!C9,\"\")","v":"Human rabies data analysis capacity at the national level has been established"},null,null,{"$f":"IF('Cross-cutting issues'!E12=0,'Cross-cutting issues'!C12,\"\")","v":""},{"$f":"IF('Cross-cutting issues'!E12=1,'Cross-cutting issues'!C12,\"\")","v":"Mechanisms for mobilizing emergency funds in case of an outbreak have been identified"},{"$f":"IF(Legislation!E14=0,Legislation!C14,\"\")","v":""},{"$f":"IF(Legislation!E14=1,Legislation!C14,\"\")","v":"Rabies is made a notifiable disease in animals "}]
[null,{"$f":"IF(IEC!E14=0,IEC!C14,\"\")","v":""},{"$f":"IF(IEC!E14=1,IEC!C14,\"\")","v":"Relevant human and animal health professionals identified at pilot level"},null,null,null,null,{"$f":"IF('Data coll & ax'!E10=0,'Data coll & ax'!C10,\"\")","v":""},{"$f":"IF('Data coll & ax'!E10=1,'Data coll & ax'!C10,\"\")","v":"Animal rabies surveillance* system at the national level has been established"},null,null,null,null,{"$f":"IF(Legislation!E15=0,Legislation!C15,\"\")","v":""},{"$f":"IF(Legislation!E15=1,Legislation!C15,\"\")","v":"Rabies is made a notifiable disease in humans "}]
[null,{"$f":"IF(IEC!E15=0,IEC!C15,\"\")","v":""},{"$f":"IF(IEC!E15=1,IEC!C15,\"\")","v":"Training plan developed at pilot level"},null,null,null,null,{"$f":"IF('Data coll & ax'!E11=0,'Data coll & ax'!C11,\"\")","v":""},{"$f":"IF('Data coll & ax'!E11=1,'Data coll & ax'!C11,\"\")","v":"Human rabies surveillance* system at the national level has been established"},null,null,null,null,{"$f":"IF(Legislation!E16=0,Legislation!C16,\"\")","v":""},{"$f":"IF(Legislation!E16=1,Legislation!C16,\"\")","v":"Legislation includes compulsory rabies vaccination of dogs or proposed if not in place"}]
[null,{"$f":"IF(IEC!E16=0,IEC!C16,\"\")","v":""},{"$f":"IF(IEC!E16=1,IEC!C16,\"\")","v":"Training or refresher courses on rabies and public communication initiated for professionals in human and animal health at pilot level"},null,null,null,null,{"$f":"IF('Data coll & ax'!E12=0,'Data coll & ax'!C12,\"\")","v":""},{"$f":"IF('Data coll & ax'!E12=1,'Data coll & ax'!C12,\"\")","v":"Reporting and documentation of humans bitten by dogs have been reviewed and data compiled"},null,null,null,null,{"$f":"IF(Legislation!E17=0,Legislation!C17,\"\")","v":""},{"$f":"IF(Legislation!E17=1,Legislation!C17,\"\")","v":"Legislation includes measures for outbreak response"}]
[null,{"$f":"IF(IEC!E18=0,IEC!C18,\"\")","v":""},{"$f":"IF(IEC!E18=1,IEC!C18,\"\")","v":"Advocacy stakeholder analysis done at pilot level and target audiences identified"},null,null,null,null,{"$f":"IF('Data coll & ax'!E13=0,'Data coll & ax'!C13,\"\")","v":""},{"$f":"IF('Data coll & ax'!E13=1,'Data coll & ax'!C13,\"\")","v":"Dog population studies and KAP surveys to determine size, turn-over and accessibility of dogs for vaccination have been conducted in pilot areas"}]
[null,{"$f":"IF(IEC!E19=0,IEC!C19,\"\")","v":""},{"$f":"IF(IEC!E19=1,IEC!C19,\"\")","v":"Advocacy plan* developed and implemented at pilot level"}]
[2,{"$f":"IF(IEC!E9=0,IEC!C9,\"\")","v":"IEC plan implemented beyond pilot area"},{"$f":"IF(IEC!E9=1,IEC!C9,\"\")","v":""},{"$f":"IF('Dog popn'!E6=0,'Dog popn'!C6,\"\")","v":""},{"$f":"IF('Dog popn'!E6=1,'Dog popn'!C6,\"\")","v":"A DPM* strategy and programme has been  drafted and shared with all relevant stakeholders in pilot areas"},{"$f":"IF('Prev & Ctrl'!E6=0,'Prev & Ctrl'!C6,\"\")","v":"A first assessment* on access to PEP (and PreP) has been carried out"},{"$f":"IF('Prev & Ctrl'!E6=1,'Prev & Ctrl'!C6,\"\")","v":""},{"$f":"IF('Data coll & ax'!E14=0,'Data coll & ax'!C14,\"\")","v":""},{"$f":"IF('Data coll & ax'!E14=1,'Data coll & ax'!C14,\"\")","v":"Establishment of linked human and animal rabies surveillance systems, including agreed SOPs"},{"$f":"IF('Lab dx'!E11=0,'Lab dx'!C11,\"\")","v":""},{"$f":"IF('Lab dx'!E11=1,'Lab dx'!C11,\"\")","v":"Routine laboratory diagnosis of animal rabies cases in country"},{"$f":"IF('Cross-cutting issues'!E9=0,'Cross-cutting issues'!C9,\"\")","v":"Mechanisms for regular intersectoral collaboration are in place and implemented"},{"$f":"IF('Cross-cutting issues'!E9=1,'Cross-cutting issues'!C9,\"\")","v":""},{"$f":"IF(Legislation!E7=0,Legislation!C7,\"\")","v":""},{"$f":"IF(Legislation!E7=1,Legislation!C7,\"\")","v":"The animal rabies case definition has been reviewed and endorsed (intersectoral approach)"}]
[null,{"$f":"IF(IEC!E10=0,IEC!C10,\"\")","v":"IEC plan reviewed and updated"},{"$f":"IF(IEC!E10=1,IEC!C10,\"\")","v":""},{"$f":"IF('Dog popn'!E7=0,'Dog popn'!C7,\"\")","v":"DPM strategy finalized"},{"$f":"IF('Dog popn'!E7=1,'Dog popn'!C7,\"\")","v":""},{"$f":"IF('Prev & Ctrl'!E7=0,'Prev & Ctrl'!C7,\"\")","v":"WHO pre-qualified human rabies vaccines available and accessible in most parts of the country"},{"$f":"IF('Prev & Ctrl'!E7=1,'Prev & Ctrl'!C7,\"\")","v":""},{"$f":"IF('Data coll & ax'!E15=0,'Data coll & ax'!C15,\"\")","v":""},{"$f":"IF('Data coll & ax'!E15=1,'Data coll & ax'!C15,\"\")","v":"Human rabies surveillance systems, including feedback mechanism, are functioning and coordinated between administrative levels (national, province, district, municipal, etc.) "},{"$f":"IF('Lab dx'!E12=0,'Lab dx'!C12,\"\")","v":"Capacity for sample collection and transportation has been established and functioning"},{"$f":"IF('Lab dx'!E12=1,'Lab dx'!C12,\"\")","v":""},{"$f":"IF('Cross-cutting issues'!E10=0,'Cross-cutting issues'!C10,\"\")","v":""},{"$f":"IF('Cross-cutting issues'!E10=1,'Cross-cutting issues'!C10,\"\")","v":"Contribution and role of  private sector clarified and shared with other stakeholders"},{"$f":"IF(Legislation!E10=0,Legislation!C10,\"\")","v":""},{"$f":"IF(Legislation!E10=1,Legislation!C10,\"\")","v":"The human rabies case definition has been reviewed and endorsed (intersectoral approach)"}]
[null,{"$f":"IF(IEC!E17=0,IEC!C17,\"\")","v":"Training of human and animal health personnel has been conducted in most parts of the country"},{"$f":"IF(IEC!E17=1,IEC!C17,\"\")","v":""},{"$f":"IF('Dog popn'!E8=0,'Dog popn'!C8,\"\")","v":""},{"$f":"IF('Dog popn'!E8=1,'Dog popn'!C8,\"\")","v":"Public sensitisation about DPM built in to rabies awareness campaigns in pilot areas"},{"$f":"IF('Prev & Ctrl'!E8=0,'Prev & Ctrl'!C8,\"\")","v":""},{"$f":"IF('Prev & Ctrl'!E8=1,'Prev & Ctrl'!C8,\"\")","v":"Any use of human biologics not WHO-pre-qualified is being phased out (e.g. nerve tissue vaccines, low quality vaccines)"},{"$f":"IF('Data coll & ax'!E16=0,'Data coll & ax'!C16,\"\")","v":""},{"$f":"IF('Data coll & ax'!E16=1,'Data coll & ax'!C16,\"\")","v":"Animal rabies surveillance systems, including feedback mechanism, are functioning and coordinated between administrative levels (national, province, district, municipal, etc.)"},null,null,{"$f":"IF('Cross-cutting issues'!E13=0,'Cross-cutting issues'!C13,\"\")","v":""},{"$f":"IF('Cross-cutting issues'!E13=1,'Cross-cutting issues'!C13,\"\")","v":"A national strategy and programme for rabies prevention, control and eventual elimination has been  drafted,  shared with all relevant stakeholders and finalised."},{"$f":"IF(Legislation!E18=0,Legislation!C18,\"\")","v":""},{"$f":"IF(Legislation!E18=1,Legislation!C18,\"\")","v":"Legal frameworks updated to include specifications on compulsory vaccination of dogs and international movement of animals. "}]
[null,{"$f":"IF(IEC!E20=0,IEC!C20,\"\")","v":"Pilot program successes communicated to authorities/leaders in other parts of the country"},{"$f":"IF(IEC!E20=1,IEC!C20,\"\")","v":""},{"$f":"IF('Dog popn'!E9=0,'Dog popn'!C9,\"\")","v":""},{"$f":"IF('Dog popn'!E9=1,'Dog popn'!C9,\"\")","v":"Dog population management has been implemented in pilot areas."},{"$f":"IF('Prev & Ctrl'!E9=0,'Prev & Ctrl'!C9,\"\")","v":""},{"$f":"IF('Prev & Ctrl'!E9=1,'Prev & Ctrl'!C9,\"\")","v":"Supply and access to WHO pre-qualified human rabies vaccines for PrEP for professionals at risk ensured throughout the pilot areas"},{"$f":"IF('Data coll & ax'!E17=0,'Data coll & ax'!C17,\"\")","v":"Information on the epidemiology of rabies is regularly shared with all stakeholders"},{"$f":"IF('Data coll & ax'!E17=1,'Data coll & ax'!C17,\"\")","v":""},null,null,{"$f":"IF('Cross-cutting issues'!E14=0,'Cross-cutting issues'!C14,\"\")","v":"Government resources identified and allocated in support of the national rabies control strategy and programme  "},{"$f":"IF('Cross-cutting issues'!E14=1,'Cross-cutting issues'!C14,\"\")","v":""}]
[null,{"$f":"IF(IEC!E21=0,IEC!C21,\"\")","v":"Advocacy stakeholder analysis* done at national level and target audiences identified"},{"$f":"IF(IEC!E21=1,IEC!C21,\"\")","v":""},{"$f":"IF('Dog popn'!E10=0,'Dog popn'!C10,\"\")","v":"Training or refresher courses on animal handling and sterilisation initiated for professionals in animal health in pilot areas"},{"$f":"IF('Dog popn'!E10=1,'Dog popn'!C10,\"\")","v":""},{"$f":"IF('Prev & Ctrl'!E14=0,'Prev & Ctrl'!C14,\"\")","v":""},{"$f":"IF('Prev & Ctrl'!E14=1,'Prev & Ctrl'!C14,\"\")","v":"Only quality dog vaccines in accordance with OIE standards are being used"}]
[null,{"$f":"IF(IEC!E22=0,IEC!C22,\"\")","v":""},{"$f":"IF(IEC!E22=1,IEC!C22,\"\")","v":"Advocacy campaign to national leaders/authorities to ensure that national rabies strategy is created and properly resourced"},null,null,{"$f":"IF('Prev & Ctrl'!E15=0,'Prev & Ctrl'!C15,\"\")","v":""},{"$f":"IF('Prev & Ctrl'!E15=1,'Prev & Ctrl'!C15,\"\")","v":"Dog vaccination campaigns are regularly implemented in response to human cases and animal outbreaks"}]
[null,null,null,null,null,{"$f":"IF('Prev & Ctrl'!E22=0,'Prev & Ctrl'!C22,\"\")","v":""},{"$f":"IF('Prev & Ctrl'!E22=1,'Prev & Ctrl'!C22,\"\")","v":"IBCM SOPs agreed, including sharing of information between sectors"}]
[null,null,null,null,null,{"$f":"IF('Prev & Ctrl'!E23=0,'Prev & Ctrl'!C23,\"\")","v":""},{"$f":"IF('Prev & Ctrl'!E23=1,'Prev & Ctrl'!C23,\"\")","v":"SOPs for the observation of dogs involved in biting incidents available "}]
[null,null,null,null,null,{"$f":"IF('Prev & Ctrl'!E24=0,'Prev & Ctrl'!C24,\"\")","v":"Sufficient facilities/protocols for observation of rabies-suspected dogs established and comply with international animal welfare standards"},{"$f":"IF('Prev & Ctrl'!E24=1,'Prev & Ctrl'!C24,\"\")","v":""}]
[3,{"$f":"IF(IEC!E11=0,IEC!C11,\"\")","v":""},{"$f":"IF(IEC!E11=1,IEC!C11,\"\")","v":"IEC plan integrated into national rabies strategy and implemented at national level"},{"$f":"IF('Dog popn'!E11=0,'Dog popn'!C11,\"\")","v":"Refinement of strategy based on current dog ecology or KAP surveys"},{"$f":"IF('Dog popn'!E11=1,'Dog popn'!C11,\"\")","v":""},{"$f":"IF('Prev & Ctrl'!E10=0,'Prev & Ctrl'!C10,\"\")","v":"WHO pre-qualified Pre- and Post- Exposure Prophylaxis available and accessible to high risk and exposed individuals throughout the country"},{"$f":"IF('Prev & Ctrl'!E10=1,'Prev & Ctrl'!C10,\"\")","v":""},{"$f":"IF('Data coll & ax'!E18=0,'Data coll & ax'!C18,\"\")","v":"Conduct field investigations for all suspected human rabies cases "},{"$f":"IF('Data coll & ax'!E18=1,'Data coll & ax'!C18,\"\")","v":""},{"$f":"IF('Lab dx'!E13=0,'Lab dx'!C13,\"\")","v":"Access to reliable laboratory diagnosis is available throughout the country  for animal samples (and if possible also for human samples)"},{"$f":"IF('Lab dx'!E13=1,'Lab dx'!C13,\"\")","v":""},{"$f":"IF('Cross-cutting issues'!E15=0,'Cross-cutting issues'!C15,\"\")","v":"Refinement of national strategy based on monitoring and evaluation "},{"$f":"IF('Cross-cutting issues'!E15=1,'Cross-cutting issues'!C15,\"\")","v":""},{"$f":"IF(Legislation!E19=0,Legislation!C19,\"\")","v":"Relevant legislation is enforced at the national level"},{"$f":"IF(Legislation!E19=1,Legislation!C19,\"\")","v":""}]
[null,{"$f":"IF(IEC!E23=0,IEC!C23,\"\")","v":"Public declaration of  human  rabies free zones"},{"$f":"IF(IEC!E23=1,IEC!C23,\"\")","v":""},{"$f":"IF('Dog popn'!E12=0,'Dog popn'!C12,\"\")","v":"Rabies awareness campaigns including responsible dog ownership have been expanded to more areas"},{"$f":"IF('Dog popn'!E12=1,'Dog popn'!C12,\"\")","v":""},{"$f":"IF('Prev & Ctrl'!E16=0,'Prev & Ctrl'!C16,\"\")","v":"Mass dog vaccination campaigns (at least 70% of the total dog population) are conducted according to the national rabies strategy "},{"$f":"IF('Prev & Ctrl'!E16=1,'Prev & Ctrl'!C16,\"\")","v":""},{"$f":"IF('Data coll & ax'!E19=0,'Data coll & ax'!C19,\"\")","v":"Epidemiological evidence available to rule out dog- transmitted human rabies cases"},{"$f":"IF('Data coll & ax'!E19=1,'Data coll & ax'!C19,\"\")","v":""},{"$f":"IF('Lab dx'!E14=0,'Lab dx'!C14,\"\")","v":"Regular characterization and analysis of circulating rabies virus variants by a national or international laboratory"},{"$f":"IF('Lab dx'!E14=1,'Lab dx'!C14,\"\")","v":""}]
[null,null,null,{"$f":"IF('Dog popn'!E13=0,'Dog popn'!C13,\"\")","v":"Veterinary and animal technician training completed across most of country"},{"$f":"IF('Dog popn'!E13=1,'Dog popn'!C13,\"\")","v":""},{"$f":"IF('Prev & Ctrl'!E17=0,'Prev & Ctrl'!C17,\"\")","v":"Post-vaccination surveys* in dogs to evaluate vaccination coverage"},{"$f":"IF('Prev & Ctrl'!E17=1,'Prev & Ctrl'!C17,\"\")","v":""},{"$f":"IF('Data coll & ax'!E20=0,'Data coll & ax'!C20,\"\")","v":"Conduct field investigations and laboratory confirmation for all suspected rabies outbreaks in dogs"},{"$f":"IF('Data coll & ax'!E20=1,'Data coll & ax'!C20,\"\")","v":""}]
[null,null,null,{"$f":"IF('Dog popn'!E14=0,'Dog popn'!C14,\"\")","v":"Dog population management has been implemented nationwide"},{"$f":"IF('Dog popn'!E14=1,'Dog popn'!C14,\"\")","v":""},{"$f":"IF('Prev & Ctrl'!E25=0,'Prev & Ctrl'!C25,\"\")","v":""},{"$f":"IF('Prev & Ctrl'!E25=1,'Prev & Ctrl'!C25,\"\")","v":"Capacity to conduct field investigations and planned outbreak response for animal and human rabies cases is available in the entire country"},{"$f":"IF('Data coll & ax'!E24=0,'Data coll & ax'!C24,\"\")","v":"Initiate collection of local or national health economic data* on rabies control to make the case for rabies control investment "},{"$f":"IF('Data coll & ax'!E24=1,'Data coll & ax'!C24,\"\")","v":""}]
[null,null,null,null,null,{"$f":"IF('Prev & Ctrl'!E26=0,'Prev & Ctrl'!C26,\"\")","v":"Identification of potential rabies free zones where canine variant cases are absent for at least a 2 year period"},{"$f":"IF('Prev & Ctrl'!E26=1,'Prev & Ctrl'!C26,\"\")","v":""},{"$f":"IF('Data coll & ax'!E25=0,'Data coll & ax'!C25,\"\")","v":"Expand health economic data analysis to support further prioritization within the national rabies control programme"},{"$f":"IF('Data coll & ax'!E25=1,'Data coll & ax'!C25,\"\")","v":""}]
[4,{"$f":"IF(IEC!E24=0,IEC!C24,\"\")","v":"Public declaration of national dog-transmitted rabies freedom "},{"$f":"IF(IEC!E24=1,IEC!C24,\"\")","v":""},{"$f":"IF('Dog popn'!E15=0,'Dog popn'!C15,\"\")","v":"Dog population management and responsible dog ownership campaigns are continued after elimination of human deaths due to dog rabies"},{"$f":"IF('Dog popn'!E15=1,'Dog popn'!C15,\"\")","v":""},{"$f":"IF('Prev & Ctrl'!E18=0,'Prev & Ctrl'!C18,\"\")","v":"Dog vaccination campaigns are maintained in zones where dog rabies is still present or where otherwise justified (e.g. risk of introduction)"},{"$f":"IF('Prev & Ctrl'!E18=1,'Prev & Ctrl'!C18,\"\")","v":""},{"$f":"IF('Data coll & ax'!E21=0,'Data coll & ax'!C21,\"\")","v":"Maintenance of existing surveillance activities for all suspected cases in humans in the country"},{"$f":"IF('Data coll & ax'!E21=1,'Data coll & ax'!C21,\"\")","v":""},{"$f":"IF('Lab dx'!E15=0,'Lab dx'!C15,\"\")","v":"Maintenance of existing surveillance activities, including ongoing laboratory investigation, for all suspected cases in dogs in the country"},{"$f":"IF('Lab dx'!E15=1,'Lab dx'!C15,\"\")","v":""},{"$f":"IF('Cross-cutting issues'!E16=0,'Cross-cutting issues'!C16,\"\")","v":""},{"$f":"IF('Cross-cutting issues'!E16=1,'Cross-cutting issues'!C16,\"\")","v":"Veterinary border inspection and quarantine measures are fully implemented in accordance with national regulations"}]
[null,{"$f":"IF(IEC!E25=0,IEC!C25,\"\")","v":"Public declaration of national human rabies freedom"},{"$f":"IF(IEC!E25=1,IEC!C25,\"\")","v":""},null,null,{"$f":"IF('Prev & Ctrl'!E27=0,'Prev & Ctrl'!C27,\"\")","v":"Freedom from dog-transmitted rabies in the entire country verified by the absence of canine variant cases for at least a 2 year period"},{"$f":"IF('Prev & Ctrl'!E27=1,'Prev & Ctrl'!C27,\"\")","v":""},{"$f":"IF('Data coll & ax'!E22=0,'Data coll & ax'!C22,\"\")","v":"Epidemiological data from routine surveillance of all animals (working animals, livestock and wildlife) used to refine the national rabies strategy"},{"$f":"IF('Data coll & ax'!E22=1,'Data coll & ax'!C22,\"\")","v":""}]
[null,null,null,null,null,{"$f":"IF('Prev & Ctrl'!E28=0,'Prev & Ctrl'!C28,\"\")","v":"Measures to prevent re-introduction applied in designated rabies free zones including dialogue with neighbouring countries."},{"$f":"IF('Prev & Ctrl'!E28=1,'Prev & Ctrl'!C28,\"\")","v":""}]
[null,null,null,null,null,{"$f":"IF('Prev & Ctrl'!E29=0,'Prev & Ctrl'!C29,\"\")","v":"Emergency response/contingency plan to any case of animal rabies involving a canine variant developed in preparation of the post elimination phase"},{"$f":"IF('Prev & Ctrl'!E29=1,'Prev & Ctrl'!C29,\"\")","v":""}]
[5,{"$f":"IF(IEC!E12=0,IEC!C12,\"\")","v":"Awareness programmes focusing on maintenance of freedom from dog and dog transmitted human rabies"},{"$f":"IF(IEC!E12=1,IEC!C12,\"\")","v":""},{"$f":"IF('Dog popn'!E16=0,'Dog popn'!C16,\"\")","v":"Dog population management and responsible dog ownership campaigns are continued as part of the post-elimination strategy"},{"$f":"IF('Dog popn'!E16=1,'Dog popn'!C16,\"\")","v":""},{"$f":"IF('Prev & Ctrl'!E11=0,'Prev & Ctrl'!C11,\"\")","v":"Modified protocols for PEP administration for rabies free areas implemented"},{"$f":"IF('Prev & Ctrl'!E11=1,'Prev & Ctrl'!C11,\"\")","v":""},{"$f":"IF('Data coll & ax'!E23=0,'Data coll & ax'!C23,\"\")","v":"On-going surveillance system for rabies maintained"},{"$f":"IF('Data coll & ax'!E23=1,'Data coll & ax'!C23,\"\")","v":""},{"$f":"IF('Lab dx'!E16=0,'Lab dx'!C16,\"\")","v":"On-going laboratory investigation of all suspected cases in domestic and wild animal species in the country"},{"$f":"IF('Lab dx'!E16=1,'Lab dx'!C16,\"\")","v":""}]
[null,null,null,null,null,{"$f":"IF('Prev & Ctrl'!E19=0,'Prev & Ctrl'!C19,\"\")","v":"Based on risk assessment, dog vaccination campaigns are maintained where justified"},{"$f":"IF('Prev & Ctrl'!E19=1,'Prev & Ctrl'!C19,\"\")","v":""}]
[null,null,null,null,null,{"$f":"IF('Prev & Ctrl'!E30=0,'Prev & Ctrl'!C30,\"\")","v":"Capacity for outbreak and re-introduction response maintained"},{"$f":"IF('Prev & Ctrl'!E30=1,'Prev & Ctrl'!C30,\"\")","v":""}]

{"sheet":"RULES","index":15,"n_rows":8,"n_cols":2,"rows_kept":8,"cut":false,"hidden":true,"merged":[]}
["RULES FOR STAGE PROGRESSION"]
[]
["SCORE","RULE"]
["+ 1","All critical activities (see hidden Key Activities worksheet) accomplished"]
["+ 0.5","50% or more of the critical activities checked"]
["+ 0.5","Not all but at least 1 critical activity checked, AND 50% +1 of all activities checked"]
["+ 0","At least 1 critical activity checked, AND 50% or less of all activities checked"]
["+ 0","No critical activity accomplished"]